{"text_format":"1","workbook":"xlsx","n_sheets":7,"sheets":["説明","基本情報登録","区分変更者情報入力","健保","健保通知書","年金","裏面"],"not_rendered":{"charts":0,"images":1,"macros":1,"external_links":0,"defined_names":0,"comments":0,"pivot_tables":0},"unopened":[],"bounds":{"document_bytes":16777216,"sheet_cells":100000,"rows_first":2000,"rows_last":500,"rows_between":2000,"halvings":0,"cell_chars":16384,"cell_head_chars":4096},"cells_cut":0,"cells_raw":0,"read":"whole","date_system":"1900"}

{"sheet":"説明","index":0,"n_rows":21,"n_cols":5,"rows_kept":21,"cut":false,"hidden":false,"merged":[]}
[]
[]
["１．","シート「基本情報登録」で事業所の基本情報を入力してください。"]
["２．","シート「区分変更者情報入力」で、入力欄を備考を参考に入力してください。"]
[null,"下に進めば５人まで入力できます。"]
[null,"１人目のところには記入例をのせているので、クリアして入力するか、上書きしてください"]
["３．","入力欄は漢字入力等は自動でオン・オフします。"]
["４．","数値のみを入力する欄は日本語入力がオフになっています。"]
[null,null,"欄は必須項目です。"]
[null,null,"欄は該当する場合入力して下さい。"]
["５．","入力が終わったらシート「区分変更者情報入力」の［健保・健保通知書・年金　印刷］ボタンを押してください。"]
[null,"シート「健保」・「健保通知書」・「年金」の3枚が印刷されます。"]
[]
["※","この届出は「短時間労働者」から「一般労働者（月給者・時間給で３／４以上の者）」に変更、"]
[null,"「一般労働者（月給者・時間給で３／４以上の者）」から「短時間労働者」に変更するというように"]
[null,"雇用形態が変更したときに提出していただく届出です。"]
[null,"「短時間労働者」についてはシート「裏面」をご覧ください。"]
[]
["※⑤","処理区分"]
[null,"１．７０歳以上被用者",null,null,"７０歳になり厚生年金保険を資格喪失した人"]
[null,"２．高齢任意加入被保険者",null,null,"７０歳になったが、厚生年金保険の加入期間が４０年に満たず、任意で加入している人。"]

{"sheet":"基本情報登録","index":1,"n_rows":11,"n_cols":5,"rows_kept":11,"cut":false,"hidden":false,"merged":[[5,4,5,11],[1,4,1,11],[2,1,3,1],[2,4,2,11],[3,4,3,11],[4,4,4,11],[6,4,6,11],[7,4,7,11],[8,4,8,11],[9,4,9,11],[10,4,10,11]]}
[]
[null,"提出年月日",{"$f":"TODAY()","v":"2022-11-02"},null,"TODAY関数が入力されています。提出日を変更する場合のみ入力してください。"]
[null,"年金整理記号","南",null,"社保記号の「南」、「北」、「豊中」を入力してください。"]
[null,null,"ＷＥＤ",null,"社保記号の「ＷＥＤ」、「ＳＦＨ」を入力してください"]
[null,"年金納入告知書番号","00687",null,"「00687」のように必ず５ケタの数字を入力してください。"]
[null,"健康保険記号","532",null,"健康保険の記号を入力してください。"]
[null,"郵便番号","542-0066",null,"「542-0066」と－（ハイフン）を入力してください。"]
[null,"事業所所在地","大阪府大阪市中央区瓦屋町2-3-1",null,"住所が長い場合は、Alt+Enterで折り返してください。"]
[null,"事業所名称","大阪自動車整備健康保険組合",null,"事業所名を入力してください。"]
[null,"事業主氏名","理事長　健保　太郎",null,"代表者名を入力してください。"]
[null,"電話番号","06-6762-6371",null,"「06-6762-6371」と－（ハイフン)を入力してください。"]

{"sheet":"区分変更者情報入力","index":2,"n_rows":105,"n_cols":8,"rows_kept":105,"cut":false,"hidden":false,"merged":[[25,0,35,0],[32,1,33,1],[32,2,33,2],[1,1,1,2],[2,0,12,0],[9,1,10,1],[9,2,10,2],[94,0,104,0],[101,1,102,1],[101,2,102,2],[48,0,58,0],[55,1,56,1],[55,2,56,2],[71,0,81,0],[78,1,79,1],[78,2,79,2]]}
[]
[null,"入力項目",null,"入力欄","備考"]
[1,"健保番号","必須","1045","資格喪失者の番号を入力"]
[null,"氏名(漢字)","必須","健保　三朗","氏名（漢字）を入力　姓と名の間にスペースを入れてください。"]
[null,"氏名(ﾌﾘｶﾞﾅ)","必須","ケンポ　サブロウ","フリガナを入力　姓と名の間にスペースを入れてください。",null,0,"０．一般"]
[null,"生年月日","必須","1951-07-01","「H7.1.1」のように和暦で入力して下さい。",null,1,"１．短時間労働者（３/４未満）"]
[null,"個人番号(基礎年金番号）","必須","1234567890","個人番号(マイナンバー)12桁か、基礎年金番号10桁を入力",null,{"$f":"LEN(D7)","v":10}]
[null,"区分変更","必須",0,"短時間労働者から一般労働者になった場合は「０」を入力\n一般労働者から短時間労働者になった場合は「１」を入力"]
[null,"変更年月日","必須","2022-10-01","短時間→一般・一般→短時間に変更した日を和暦で入力して下さい。",null,1,"１．７０歳以上被用者"]
[null,"住所","マイナンバーを入力した場合入力不要","大阪府大阪市中央区瓦屋町2-3-1","住所を入力",null,2,"２．高齢任意加入被保険者"]
[null,null,null,"ｵｵｻｶﾌｵｵｻｶｼﾁｭｳｵｳｸｶﾜﾗﾔﾏﾁ","住所（カナ）を入力"]
[null,"処理区分",null,null,"７０歳以上被保険者の方は「１」を入力\n高齢任意加入被保険者の方は「２」を入力\n該当しない場合はブランクのままにしてください。"]
[null,"年金番号",null,"1035","健保番号と違う場合のみ入力してください。"]
[]
[]
[]
[]
[]
[]
[]
[]
[]
[]
[]
[]
[2,"健保番号","必須",null,"資格喪失者の番号を入力"]
[null,"氏名(漢字)","必須",null,"氏名（漢字）を入力　姓と名の間にスペースを入れてください。"]
[null,"氏名(ﾌﾘｶﾞﾅ)","必須",null,"フリガナを入力　姓と名の間にスペースを入れてください。",null,0,"０．一般"]
[null,"生年月日","必須",null,"「H7.1.1」のように和暦で入力して下さい。",null,1,"１．短時間労働者（３/４未満）"]
[null,"個人番号(基礎年金番号）","必須",null,"個人番号(マイナンバー)12桁か、基礎年金番号10桁を入力",null,{"$f":"LEN(D30)","v":0}]
[null,"区分変更","必須",null,"短時間労働者から一般労働者になった場合は「０」を入力\n一般労働者から短時間労働者になった場合は「１」を入力"]
[null,"変更年月日","必須",null,"短時間→一般・一般→短時間に変更した日を和暦で入力して下さい。",null,1,"１．７０歳以上被用者"]
[null,"住所","マイナンバーを入力した場合入力不要",null,"住所を入力",null,2,"２．高齢任意加入被保険者"]
[null,null,null,null,"住所（カナ）を入力"]
[null,"処理区分",null,null,"７０歳以上被保険者の方は「１」を入力\n高齢任意加入被保険者の方は「２」を入力\n該当しない場合はブランクのままにしてください。"]
[null,"年金番号",null,null,"健保番号と違う場合のみ入力してください。"]
[]
[]
[]
[]
[]
[]
[]
[]
[]
[]
[]
[]
[3,"健保番号","必須",null,"資格喪失者の番号を入力"]
[null,"氏名(漢字)","必須",null,"氏名（漢字）を入力　姓と名の間にスペースを入れてください。"]
[null,"氏名(ﾌﾘｶﾞﾅ)","必須",null,"フリガナを入力　姓と名の間にスペースを入れてください。",null,0,"０．一般"]
[null,"生年月日","必須",null,"「H7.1.1」のように和暦で入力して下さい。",null,1,"１．短時間労働者（３/４未満）"]
[null,"個人番号(基礎年金番号）","必須",null,"個人番号(マイナンバー)12桁か、基礎年金番号10桁を入力",null,{"$f":"LEN(D53)","v":0}]
[null,"区分変更","必須",null,"短時間労働者から一般労働者になった場合は「０」を入力\n一般労働者から短時間労働者になった場合は「１」を入力"]
[null,"変更年月日","必須",null,"短時間→一般・一般→短時間に変更した日を和暦で入力して下さい。",null,1,"１．７０歳以上被用者"]
[null,"住所","マイナンバーを入力した場合入力不要",null,"住所を入力",null,2,"２．高齢任意加入被保険者"]
[null,null,null,null,"住所（カナ）を入力"]
[null,"処理区分",null,null,"７０歳以上被保険者の方は「１」を入力\n高齢任意加入被保険者の方は「２」を入力\n該当しない場合はブランクのままにしてください。"]
[null,"年金番号",null,null,"健保番号と違う場合のみ入力してください。"]
[]
[]
[]
[]
[]
[]
[]
[]
[]
[]
[]
[]
[4,"健保番号","必須",null,"資格喪失者の番号を入力"]
[null,"氏名(漢字)","必須",null,"氏名（漢字）を入力　姓と名の間にスペースを入れてください。"]
[null,"氏名(ﾌﾘｶﾞﾅ)","必須",null,"フリガナを入力　姓と名の間にスペースを入れてください。",null,0,"０．一般"]
[null,"生年月日","必須",null,"「H7.1.1」のように和暦で入力して下さい。",null,1,"１．短時間労働者（３/４未満）"]
[null,"個人番号(基礎年金番号）","必須",null,"個人番号(マイナンバー)12桁か、基礎年金番号10桁を入力",null,{"$f":"LEN(D76)","v":0}]
[null,"区分変更","必須",null,"短時間労働者から一般労働者になった場合は「０」を入力\n一般労働者から短時間労働者になった場合は「１」を入力"]
[null,"変更年月日","必須",null,"短時間→一般・一般→短時間に変更した日を和暦で入力して下さい。",null,1,"１．７０歳以上被用者"]
[null,"住所","マイナンバーを入力した場合入力不要",null,"住所を入力",null,2,"２．高齢任意加入被保険者"]
[null,null,null,null,"住所（カナ）を入力"]
[null,"処理区分",null,null,"７０歳以上被保険者の方は「１」を入力\n高齢任意加入被保険者の方は「２」を入力\n該当しない場合はブランクのままにしてください。"]
[null,"年金番号",null,null,"健保番号と違う場合のみ入力してください。"]
[]
[]
[]
[]
[]
[]
[]
[]
[]
[]
[]
[]
[5,"健保番号","必須",null,"資格喪失者の番号を入力"]
[null,"氏名(漢字)","必須",null,"氏名（漢字）を入力　姓と名の間にスペースを入れてください。"]
[null,"氏名(ﾌﾘｶﾞﾅ)","必須",null,"フリガナを入力　姓と名の間にスペースを入れてください。",null,0,"０．一般"]
[null,"生年月日","必須",null,"「H7.1.1」のように和暦で入力して下さい。",null,1,"１．短時間労働者（３/４未満）"]
[null,"個人番号(基礎年金番号）","必須",null,"個人番号(マイナンバー)12桁か、基礎年金番号10桁を入力",null,{"$f":"LEN(D99)","v":0}]
[null,"区分変更","必須",null,"短時間労働者から一般労働者になった場合は「０」を入力\n一般労働者から短時間労働者になった場合は「１」を入力"]
[null,"変更年月日","必須",null,"短時間→一般・一般→短時間に変更した日を和暦で入力して下さい。",null,1,"１．７０歳以上被用者"]
[null,"住所","マイナンバーを入力した場合入力不要",null,"住所を入力",null,2,"２．高齢任意加入被保険者"]
[null,null,null,null,"住所（カナ）を入力"]
[null,"処理区分",null,null,"７０歳以上被保険者の方は「１」を入力\n高齢任意加入被保険者の方は「２」を入力\n該当しない場合はブランクのままにしてください。"]
[null,"年金番号",null,null,"健保番号と違う場合のみ入力してください。"]

{"sheet":"健保","index":3,"n_rows":167,"n_cols":120,"rows_kept":167,"cut":false,"hidden":false,"merged":[[166,3,168,48],[144,3,164,7],[144,9,145,10],[144,18,150,29],[144,30,150,36],[144,37,145,42],[146,10,149,16],[151,66,157,74],[151,75,152,79],[153,9,157,17],[153,75,157,128],[146,91,149,95],[151,9,152,10],[151,80,152,128],[151,18,157,65],[144,90,145,91],[158,112,164,128],[160,10,163,16],[160,39,163,45],[160,67,163,73],[158,9,159,11],[158,18,164,37],[158,38,159,39],[158,47,164,65],[158,66,159,67],[158,107,164,111],[158,75,164,106],[128,80,129,128],[130,9,134,17],[130,75,134,128],[121,90,122,91],[123,91,126,95],[121,43,122,89],[121,97,127,128],[135,47,141,65],[135,66,136,67],[128,9,129,10],[135,107,141,111],[135,112,141,128],[137,10,140,16],[137,39,140,45],[137,67,140,73],[135,9,136,11],[135,18,141,37],[135,38,136,39],[121,3,141,7],[121,9,122,10],[121,18,127,29],[121,30,127,36],[121,37,122,42],[123,10,126,16],[128,66,134,74],[128,75,129,79],[98,3,118,7],[98,9,99,10],[98,18,104,29],[98,30,104,36],[98,37,99,42],[100,10,103,16],[105,66,111,74],[105,75,106,79],[105,80,106,128],[107,9,111,17],[107,75,111,128],[98,90,99,91],[100,91,103,95],[105,9,106,10],[112,75,118,106],[112,107,118,111],[112,112,118,128],[114,10,117,16],[114,39,117,45],[114,67,117,73],[112,9,113,11],[112,18,118,37],[112,38,113,39],[112,47,118,65],[112,66,113,67],[75,90,76,91],[77,91,80,95],[75,43,76,89],[75,97,81,128],[82,75,83,79],[82,80,83,128],[84,9,88,17],[84,75,88,128],[89,107,95,111],[89,112,95,128],[91,10,94,16],[91,39,94,45],[91,67,94,73],[89,9,90,11],[89,18,95,37],[89,38,90,39],[89,47,95,65],[89,66,90,67],[66,9,67,11],[66,18,72,37],[66,38,67,39],[66,47,72,65],[66,66,67,67],[75,3,95,7],[75,9,76,10],[75,18,81,29],[75,30,81,36],[75,37,76,42],[77,10,80,16],[82,66,88,74],[82,9,83,10],[45,10,48,16],[45,72,49,128],[59,9,60,10],[38,21,44,67],[38,10,41,16],[16,3,49,7],[31,10,34,16],[31,21,37,67],[54,10,57,16],[54,91,57,95],[52,3,72,7],[52,9,53,10],[52,18,58,29],[52,30,58,36],[52,37,53,42],[52,90,53,91],[59,66,65,74],[59,75,60,79],[59,80,60,128],[61,9,65,17],[61,75,65,128],[66,107,72,111],[66,112,72,128],[68,10,71,16],[24,10,27,16],[25,19,26,20],[16,41,21,52],[16,9,21,19],[16,26,21,28],[27,21,30,67],[16,53,21,67],[16,20,21,25],[43,72,44,73],[16,29,21,40],[25,21,26,35],[2,3,6,5],[2,6,6,8],[2,9,6,11],[2,12,6,14],[2,15,6,17],[2,18,6,20],[0,3,1,11],[0,12,1,20],[0,40,4,77],[5,40,9,78],[6,26,8,37],[59,18,65,65],[16,102,18,128],[23,18,24,67],[43,74,44,80],[43,81,44,121],[68,39,71,45],[68,67,71,73],[0,119,2,128],[3,89,10,98],[3,99,10,108],[3,109,10,118],[3,119,10,128],[0,26,4,37],[0,79,2,88],[3,79,10,88],[0,109,2,118],[0,89,2,98],[0,99,2,108],[12,6,14,31],[123,37,127,42],[123,43,127,89],[128,18,134,65],[135,75,141,106],[144,43,145,89],[144,97,150,128],[146,37,150,42],[146,43,150,89],[77,37,81,42],[77,43,81,89],[82,18,88,65],[89,75,95,106],[98,43,99,89],[98,97,104,128],[100,37,104,42],[100,43,104,89],[105,18,111,65],[45,21,49,67],[54,37,58,42],[54,43,58,89],[52,43,53,89],[52,97,58,128],[66,75,72,106]]}
[null,null,null,null,null,null,null,null,null,null,null,null,null,null,null,null,null,null,null,null,null,null,null,null,null,null,"健康保険",null,null,null,null,null,null,null,null,null,null,null,null,null,"被保険者区分変更届",null,null,null,null,null,null,null,null,null,null,null,null,null,null,null,null,null,null,null,null,null,null,null,null,null,null,null,null,null,null,null,null,null,null,null,null,null,null,"常務理事",null,null,null,null,null,null,null,null,null,"事務長",null,null,null,null,null,null,null,null,null,"部長",null,null,null,null,null,null,null,null,null,"課長",null,null,null,null,null,null,null,null,null,"担当"]
[]
[]
[]
[]
[]
[]
[]
[]
[]
[]
[]
[null,null,null,null,null,null,{"$f":"基本情報登録!C2","v":"2022-11-02"}]
[]
[]
[]
[null,null,null,"提出者記入欄",null,null,null,null,null,"① 事業所\n　整理記号",null,null,null,null,null,null,null,null,null,null,{"$f":"基本情報登録!C3","v":"南"},null,null,null,null,null,"－",null,null,{"$f":"基本情報登録!C4","v":"ＷＥＤ"},null,null,null,null,null,null,null,null,null,null,null,"健保記号",null,null,null,null,null,null,null,null,null,null,null,{"$f":"基本情報登録!C6","v":"532"},null,null,null,null,null,null,null,null,null,null,null,null,null,null,null,null,null,null,null,null,null,null,null,null,null,null,null,null,null,null,null,null,null,null,null,null,null,null,null,null,null,null,null,null,null,null,null,null,"受付印"]
[]
[]
[]
[]
[]
[]
[null,null,null,null,null,null,null,null,null,null,null,null,null,null,null,null,null,null,"　届書記入の個人番号に誤りがないことを確認しました。"]
[null,null,null,null,null,null,null,null,null,null,"事業所\n所在地"]
[null,null,null,null,null,null,null,null,null,null,null,null,null,null,null,null,null,null,null,"〒",null,{"$f":"基本情報登録!C7","v":"542-0066"}]
[]
[null,null,null,null,null,null,null,null,null,null,null,null,null,null,null,null,null,null,null,null,null,{"$f":"基本情報登録!C8","v":"大阪府大阪市中央区瓦屋町2-3-1"}]
[]
[]
[]
[null,null,null,null,null,null,null,null,null,null,"事業所\n名　称",null,null,null,null,null,null,null,null,null,null,{"$f":"基本情報登録!C9","v":"大阪自動車整備健康保険組合"}]
[]
[]
[]
[]
[]
[]
[null,null,null,null,null,null,null,null,null,null,"事業主\n氏　名",null,null,null,null,null,null,null,null,null,null,{"$f":"基本情報登録!C10","v":"理事長　健保　太郎"}]
[]
[]
[]
[]
[null,null,null,null,null,null,null,null,null,null,null,null,null,null,null,null,null,null,null,null,null,null,null,null,null,null,null,null,null,null,null,null,null,null,null,null,null,null,null,null,null,null,null,null,null,null,null,null,null,null,null,null,null,null,null,null,null,null,null,null,null,null,null,null,null,null,null,null,null,null,null,null,null,null,"氏名等"]
[]
[null,null,null,null,null,null,null,null,null,null,"電話番号",null,null,null,null,null,null,null,null,null,null,{"$f":"基本情報登録!C11","v":"06-6762-6371"}]
[]
[]
[]
[]
[]
[]
[null,null,null,"被保険者（被用者）１",null,null,null,null,null,"②",null,null,null,null,null,null,null,null,{"$f":"IF(ISTEXT(区分変更者情報入力!D3),区分変更者情報入力!D3,\"\")","v":"1045"},null,null,null,null,null,null,null,null,null,null,null,"氏　名",null,null,null,null,null,null,"（ﾌﾘｶﾞﾅ）",null,null,null,null,null,{"$f":"IF(ISTEXT(区分変更者情報入力!D5),区分変更者情報入力!D5,\"\")","v":"ケンポ　サブロウ"},null,null,null,null,null,null,null,null,null,null,null,null,null,null,null,null,null,null,null,null,null,null,null,null,null,null,null,null,null,null,null,null,null,null,null,null,null,null,null,null,null,null,null,null,null,null,"④",null,null,null,null,null,null,{"$f":"IF(ISNUMBER(区分変更者情報入力!D6),区分変更者情報入力!D6,\"\")","v":"1951-07-01"}]
[]
[null,null,null,null,null,null,null,null,null,null,"整理\n番号",null,null,null,null,null,null,null,null,null,null,null,null,null,null,null,null,null,null,null,null,null,null,null,null,null,null,null,null,null,null,null,null,{"$f":"IF(ISTEXT(区分変更者情報入力!D4),区分変更者情報入力!D4,\"\")","v":"健保　三朗"},null,null,null,null,null,null,null,null,null,null,null,null,null,null,null,null,null,null,null,null,null,null,null,null,null,null,null,null,null,null,null,null,null,null,null,null,null,null,null,null,null,null,null,null,null,null,null,"生年\n月日"]
[]
[]
[]
[]
[null,null,null,null,null,null,null,null,null,"③",null,null,null,null,null,null,null,null,{"$f":"IF(ISTEXT(区分変更者情報入力!D7),区分変更者情報入力!D7,\"\")","v":"1234567890"},null,null,null,null,null,null,null,null,null,null,null,null,null,null,null,null,null,null,null,null,null,null,null,null,null,null,null,null,null,null,null,null,null,null,null,null,null,null,null,null,null,null,null,null,null,null,null,"住　所\n※個人番号を記入した場合は、住所記入は不要です",null,null,null,null,null,null,null,null,"（ﾌﾘｶﾞﾅ）",null,null,null,null,{"$f":"IF(区分変更者情報入力!G7>10,\"\",IF(ISTEXT(区分変更者情報入力!D11),区分変更者情報入力!D11,\"\"))","v":"ｵｵｻｶﾌｵｵｻｶｼﾁｭｳｵｳｸｶﾜﾗﾔﾏﾁ"}]
[]
[null,null,null,null,null,null,null,null,null,"個人番号（または基礎年金番号）\n",null,null,null,null,null,null,null,null,null,null,null,null,null,null,null,null,null,null,null,null,null,null,null,null,null,null,null,null,null,null,null,null,null,null,null,null,null,null,null,null,null,null,null,null,null,null,null,null,null,null,null,null,null,null,null,null,null,null,null,null,null,null,null,null,null,{"$f":"IF(区分変更者情報入力!G7>10,\"\",IF(ISTEXT(区分変更者情報入力!D10),区分変更者情報入力!D10,\"\"))","v":"大阪府大阪市中央区瓦屋町2-3-1"}]
[]
[]
[]
[]
[null,null,null,null,null,null,null,null,null,"※⑤",null,null,null,null,null,null,null,null,{"$f":"IF(ISNUMBER(区分変更者情報入力!D12),VLOOKUP(区分変更者情報入力!D12,区分変更者情報入力!G9:H10,2,0),\"　１． 70歳以上被用者\n　２． 高齢任意加入被保険者\")","v":"　１． 70歳以上被用者\n　２． 高齢任意加入被保険者"},null,null,null,null,null,null,null,null,null,null,null,null,null,null,null,null,null,null,null,"⑥",null,null,null,null,null,null,null,null,{"$f":"IF(ISNUMBER(区分変更者情報入力!D8),VLOOKUP(区分変更者情報入力!D8,区分変更者情報入力!G5:H6,2,0),\"０．一般\n１．短時間労働者(3/4未満)\")","v":"０．一般"},null,null,null,null,null,null,null,null,null,null,null,null,null,null,null,null,null,null,"⑦",null,null,null,null,null,null,null,null,{"$f":"IF(ISNUMBER(区分変更者情報入力!D9),区分変更者情報入力!D9,\"\")","v":"2022-10-01"},null,null,null,null,null,null,null,null,null,null,null,null,null,null,null,null,null,null,null,null,null,null,null,null,null,null,null,null,null,null,null,"備 考"]
[]
[null,null,null,null,null,null,null,null,null,null,"処理\n区分",null,null,null,null,null,null,null,null,null,null,null,null,null,null,null,null,null,null,null,null,null,null,null,null,null,null,null,null,"変更後\n区分",null,null,null,null,null,null,null,null,null,null,null,null,null,null,null,null,null,null,null,null,null,null,null,null,null,null,null,"変更\n年月日"]
[]
[]
[]
[]
[]
[]
[null,null,null,"被保険者（被用者）２",null,null,null,null,null,"②",null,null,null,null,null,null,null,null,{"$f":"IF(ISTEXT(区分変更者情報入力!D26),区分変更者情報入力!D26,\"\")","v":""},null,null,null,null,null,null,null,null,null,null,null,"氏　名",null,null,null,null,null,null,"（ﾌﾘｶﾞﾅ）",null,null,null,null,null,{"$f":"IF(ISTEXT(区分変更者情報入力!D28),区分変更者情報入力!D28,\"\")","v":""},null,null,null,null,null,null,null,null,null,null,null,null,null,null,null,null,null,null,null,null,null,null,null,null,null,null,null,null,null,null,null,null,null,null,null,null,null,null,null,null,null,null,null,null,null,null,"④",null,null,null,null,null,null,{"$f":"IF(ISNUMBER(区分変更者情報入力!D29),区分変更者情報入力!D29,\"\")","v":""}]
[]
[null,null,null,null,null,null,null,null,null,null,"整理\n番号",null,null,null,null,null,null,null,null,null,null,null,null,null,null,null,null,null,null,null,null,null,null,null,null,null,null,null,null,null,null,null,null,{"$f":"IF(ISTEXT(区分変更者情報入力!D27),区分変更者情報入力!D27,\"\")","v":""},null,null,null,null,null,null,null,null,null,null,null,null,null,null,null,null,null,null,null,null,null,null,null,null,null,null,null,null,null,null,null,null,null,null,null,null,null,null,null,null,null,null,null,null,null,null,null,"生年\n月日"]
[]
[]
[]
[]
[null,null,null,null,null,null,null,null,null,"③",null,null,null,null,null,null,null,null,{"$f":"IF(ISTEXT(区分変更者情報入力!D30),区分変更者情報入力!D30,\"\")","v":""},null,null,null,null,null,null,null,null,null,null,null,null,null,null,null,null,null,null,null,null,null,null,null,null,null,null,null,null,null,null,null,null,null,null,null,null,null,null,null,null,null,null,null,null,null,null,null,"住　所\n※個人番号を記入した場合は、住所記入は不要です",null,null,null,null,null,null,null,null,"（ﾌﾘｶﾞﾅ）",null,null,null,null,{"$f":"IF(区分変更者情報入力!G30>10,\"\",IF(ISTEXT(区分変更者情報入力!D34),区分変更者情報入力!D34,\"\"))","v":""}]
[]
[null,null,null,null,null,null,null,null,null,"個人番号（または基礎年金番号）\n",null,null,null,null,null,null,null,null,null,null,null,null,null,null,null,null,null,null,null,null,null,null,null,null,null,null,null,null,null,null,null,null,null,null,null,null,null,null,null,null,null,null,null,null,null,null,null,null,null,null,null,null,null,null,null,null,null,null,null,null,null,null,null,null,null,{"$f":"IF(区分変更者情報入力!G30>10,\"\",IF(ISTEXT(区分変更者情報入力!D33),区分変更者情報入力!D33,\"\"))","v":""}]
[]
[]
[]
[]
[null,null,null,null,null,null,null,null,null,"※⑤",null,null,null,null,null,null,null,null,{"$f":"IF(ISNUMBER(区分変更者情報入力!D35),VLOOKUP(区分変更者情報入力!D35,区分変更者情報入力!G32:H33,2,0),\"　１． 70歳以上被用者\n　２． 高齢任意加入被保険者\")","v":"　１． 70歳以上被用者\n　２． 高齢任意加入被保険者"},null,null,null,null,null,null,null,null,null,null,null,null,null,null,null,null,null,null,null,"⑥",null,null,null,null,null,null,null,null,{"$f":"IF(ISNUMBER(区分変更者情報入力!D31),VLOOKUP(区分変更者情報入力!D31,区分変更者情報入力!G28:H29,2,0),\"０．一般\n１．短時間労働者(3/4未満)\")","v":"０．一般\n１．短時間労働者(3/4未満)"},null,null,null,null,null,null,null,null,null,null,null,null,null,null,null,null,null,null,"⑦",null,null,null,null,null,null,null,null,{"$f":"IF(ISNUMBER(区分変更者情報入力!D32),区分変更者情報入力!D32,\"\")","v":""},null,null,null,null,null,null,null,null,null,null,null,null,null,null,null,null,null,null,null,null,null,null,null,null,null,null,null,null,null,null,null,"備 考"]
[]
[null,null,null,null,null,null,null,null,null,null,"処理\n区分",null,null,null,null,null,null,null,null,null,null,null,null,null,null,null,null,null,null,null,null,null,null,null,null,null,null,null,null,"変更後\n区分",null,null,null,null,null,null,null,null,null,null,null,null,null,null,null,null,null,null,null,null,null,null,null,null,null,null,null,"変更\n年月日"]
[]
[]
[]
[]
[]
[]
[null,null,null,"被保険者（被用者）３",null,null,null,null,null,"②",null,null,null,null,null,null,null,null,{"$f":"IF(ISTEXT(区分変更者情報入力!D49),区分変更者情報入力!D49,\"\")","v":""},null,null,null,null,null,null,null,null,null,null,null,"氏　名",null,null,null,null,null,null,"（ﾌﾘｶﾞﾅ）",null,null,null,null,null,{"$f":"IF(ISTEXT(区分変更者情報入力!D51),区分変更者情報入力!D51,\"\")","v":""},null,null,null,null,null,null,null,null,null,null,null,null,null,null,null,null,null,null,null,null,null,null,null,null,null,null,null,null,null,null,null,null,null,null,null,null,null,null,null,null,null,null,null,null,null,null,"④",null,null,null,null,null,null,{"$f":"IF(ISNUMBER(区分変更者情報入力!D52),区分変更者情報入力!D52,\"\")","v":""}]
[]
[null,null,null,null,null,null,null,null,null,null,"整理\n番号",null,null,null,null,null,null,null,null,null,null,null,null,null,null,null,null,null,null,null,null,null,null,null,null,null,null,null,null,null,null,null,null,{"$f":"IF(ISTEXT(区分変更者情報入力!D50),区分変更者情報入力!D50,\"\")","v":""},null,null,null,null,null,null,null,null,null,null,null,null,null,null,null,null,null,null,null,null,null,null,null,null,null,null,null,null,null,null,null,null,null,null,null,null,null,null,null,null,null,null,null,null,null,null,null,"生年\n月日"]
[]
[]
[]
[]
[null,null,null,null,null,null,null,null,null,"③",null,null,null,null,null,null,null,null,{"$f":"IF(ISTEXT(区分変更者情報入力!D53),区分変更者情報入力!D53,\"\")","v":""},null,null,null,null,null,null,null,null,null,null,null,null,null,null,null,null,null,null,null,null,null,null,null,null,null,null,null,null,null,null,null,null,null,null,null,null,null,null,null,null,null,null,null,null,null,null,null,"住　所\n※個人番号を記入した場合は、住所記入は不要です",null,null,null,null,null,null,null,null,"（ﾌﾘｶﾞﾅ）",null,null,null,null,{"$f":"IF(区分変更者情報入力!G53>10,\"\",IF(ISTEXT(区分変更者情報入力!D57),区分変更者情報入力!D57,\"\"))","v":""}]
[]
[null,null,null,null,null,null,null,null,null,"個人番号（または基礎年金番号）\n",null,null,null,null,null,null,null,null,null,null,null,null,null,null,null,null,null,null,null,null,null,null,null,null,null,null,null,null,null,null,null,null,null,null,null,null,null,null,null,null,null,null,null,null,null,null,null,null,null,null,null,null,null,null,null,null,null,null,null,null,null,null,null,null,null,{"$f":"IF(区分変更者情報入力!G53>10,\"\",IF(ISTEXT(区分変更者情報入力!D56),区分変更者情報入力!D56,\"\"))","v":""}]
[]
[]
[]
[]
[null,null,null,null,null,null,null,null,null,"※⑤",null,null,null,null,null,null,null,null,{"$f":"IF(ISNUMBER(区分変更者情報入力!D58),VLOOKUP(区分変更者情報入力!D58,区分変更者情報入力!G55:H56,2,0),\"　１． 70歳以上被用者\n　２． 高齢任意加入被保険者\")","v":"　１． 70歳以上被用者\n　２． 高齢任意加入被保険者"},null,null,null,null,null,null,null,null,null,null,null,null,null,null,null,null,null,null,null,"⑥",null,null,null,null,null,null,null,null,{"$f":"IF(ISNUMBER(区分変更者情報入力!D54),VLOOKUP(区分変更者情報入力!D54,区分変更者情報入力!G51:H52,2,0),\"０．一般\n１．短時間労働者(3/4未満)\")","v":"０．一般\n１．短時間労働者(3/4未満)"},null,null,null,null,null,null,null,null,null,null,null,null,null,null,null,null,null,null,"⑦",null,null,null,null,null,null,null,null,{"$f":"IF(ISNUMBER(区分変更者情報入力!D55),区分変更者情報入力!D55,\"\")","v":""},null,null,null,null,null,null,null,null,null,null,null,null,null,null,null,null,null,null,null,null,null,null,null,null,null,null,null,null,null,null,null,"備 考"]
[]
[null,null,null,null,null,null,null,null,null,null,"処理\n区分",null,null,null,null,null,null,null,null,null,null,null,null,null,null,null,null,null,null,null,null,null,null,null,null,null,null,null,null,"変更後\n区分",null,null,null,null,null,null,null,null,null,null,null,null,null,null,null,null,null,null,null,null,null,null,null,null,null,null,null,"変更\n年月日"]
[]
[]
[]
[]
[]
[]
[null,null,null,"被保険者（被用者）４",null,null,null,null,null,"②",null,null,null,null,null,null,null,null,{"$f":"IF(ISTEXT(区分変更者情報入力!D72),区分変更者情報入力!D72,\"\")","v":""},null,null,null,null,null,null,null,null,null,null,null,"氏　名",null,null,null,null,null,null,"（ﾌﾘｶﾞﾅ）",null,null,null,null,null,{"$f":"IF(ISTEXT(区分変更者情報入力!D74),区分変更者情報入力!D74,\"\")","v":""},null,null,null,null,null,null,null,null,null,null,null,null,null,null,null,null,null,null,null,null,null,null,null,null,null,null,null,null,null,null,null,null,null,null,null,null,null,null,null,null,null,null,null,null,null,null,"④",null,null,null,null,null,null,{"$f":"IF(ISNUMBER(区分変更者情報入力!D75),区分変更者情報入力!D75,\"\")","v":""}]
[]
[null,null,null,null,null,null,null,null,null,null,"整理\n番号",null,null,null,null,null,null,null,null,null,null,null,null,null,null,null,null,null,null,null,null,null,null,null,null,null,null,null,null,null,null,null,null,{"$f":"IF(ISTEXT(区分変更者情報入力!D73),区分変更者情報入力!D73,\"\")","v":""},null,null,null,null,null,null,null,null,null,null,null,null,null,null,null,null,null,null,null,null,null,null,null,null,null,null,null,null,null,null,null,null,null,null,null,null,null,null,null,null,null,null,null,null,null,null,null,"生年\n月日"]
[]
[]
[]
[]
[null,null,null,null,null,null,null,null,null,"③",null,null,null,null,null,null,null,null,{"$f":"IF(ISTEXT(区分変更者情報入力!D76),区分変更者情報入力!D76,\"\")","v":""},null,null,null,null,null,null,null,null,null,null,null,null,null,null,null,null,null,null,null,null,null,null,null,null,null,null,null,null,null,null,null,null,null,null,null,null,null,null,null,null,null,null,null,null,null,null,null,"住　所\n※個人番号を記入した場合は、住所記入は不要です",null,null,null,null,null,null,null,null,"（ﾌﾘｶﾞﾅ）",null,null,null,null,{"$f":"IF(区分変更者情報入力!G76>10,\"\",IF(ISTEXT(区分変更者情報入力!D80),区分変更者情報入力!D80,\"\"))","v":""}]
[]
[null,null,null,null,null,null,null,null,null,"個人番号（または基礎年金番号）\n",null,null,null,null,null,null,null,null,null,null,null,null,null,null,null,null,null,null,null,null,null,null,null,null,null,null,null,null,null,null,null,null,null,null,null,null,null,null,null,null,null,null,null,null,null,null,null,null,null,null,null,null,null,null,null,null,null,null,null,null,null,null,null,null,null,{"$f":"IF(区分変更者情報入力!G76>10,\"\",IF(ISTEXT(区分変更者情報入力!D79),区分変更者情報入力!D79,\"\"))","v":""}]
[]
[]
[]
[]
[null,null,null,null,null,null,null,null,null,"※⑤",null,null,null,null,null,null,null,null,{"$f":"IF(ISNUMBER(区分変更者情報入力!D81),VLOOKUP(区分変更者情報入力!D81,区分変更者情報入力!G78:H79,2,0),\"　１． 70歳以上被用者\n　２． 高齢任意加入被保険者\")","v":"　１． 70歳以上被用者\n　２． 高齢任意加入被保険者"},null,null,null,null,null,null,null,null,null,null,null,null,null,null,null,null,null,null,null,"⑥",null,null,null,null,null,null,null,null,{"$f":"IF(ISNUMBER(区分変更者情報入力!D77),VLOOKUP(区分変更者情報入力!D77,区分変更者情報入力!G74:H75,2,0),\"０．一般\n１．短時間労働者(3/4未満)\")","v":"０．一般\n１．短時間労働者(3/4未満)"},null,null,null,null,null,null,null,null,null,null,null,null,null,null,null,null,null,null,"⑦",null,null,null,null,null,null,null,null,{"$f":"IF(ISNUMBER(区分変更者情報入力!D78),区分変更者情報入力!D78,\"\")","v":""},null,null,null,null,null,null,null,null,null,null,null,null,null,null,null,null,null,null,null,null,null,null,null,null,null,null,null,null,null,null,null,"備 考"]
[]
[null,null,null,null,null,null,null,null,null,null,"処理\n区分",null,null,null,null,null,null,null,null,null,null,null,null,null,null,null,null,null,null,null,null,null,null,null,null,null,null,null,null,"変更後\n区分",null,null,null,null,null,null,null,null,null,null,null,null,null,null,null,null,null,null,null,null,null,null,null,null,null,null,null,"変更\n年月日"]
[]
[]
[]
[]
[]
[]
[null,null,null,"被保険者（被用者）５",null,null,null,null,null,"②",null,null,null,null,null,null,null,null,{"$f":"IF(ISTEXT(区分変更者情報入力!D95),区分変更者情報入力!D95,\"\")","v":""},null,null,null,null,null,null,null,null,null,null,null,"氏　名",null,null,null,null,null,null,"（ﾌﾘｶﾞﾅ）",null,null,null,null,null,{"$f":"IF(ISTEXT(区分変更者情報入力!D97),区分変更者情報入力!D97,\"\")","v":""},null,null,null,null,null,null,null,null,null,null,null,null,null,null,null,null,null,null,null,null,null,null,null,null,null,null,null,null,null,null,null,null,null,null,null,null,null,null,null,null,null,null,null,null,null,null,"④",null,null,null,null,null,null,{"$f":"IF(ISNUMBER(区分変更者情報入力!D98),区分変更者情報入力!D98,\"\")","v":""}]
[]
[null,null,null,null,null,null,null,null,null,null,"整理\n番号",null,null,null,null,null,null,null,null,null,null,null,null,null,null,null,null,null,null,null,null,null,null,null,null,null,null,null,null,null,null,null,null,{"$f":"IF(ISTEXT(区分変更者情報入力!D96),区分変更者情報入力!D96,\"\")","v":""},null,null,null,null,null,null,null,null,null,null,null,null,null,null,null,null,null,null,null,null,null,null,null,null,null,null,null,null,null,null,null,null,null,null,null,null,null,null,null,null,null,null,null,null,null,null,null,"生年\n月日"]
[]
[]
[]
[]
[null,null,null,null,null,null,null,null,null,"③",null,null,null,null,null,null,null,null,{"$f":"IF(ISTEXT(区分変更者情報入力!D99),区分変更者情報入力!D99,\"\")","v":""},null,null,null,null,null,null,null,null,null,null,null,null,null,null,null,null,null,null,null,null,null,null,null,null,null,null,null,null,null,null,null,null,null,null,null,null,null,null,null,null,null,null,null,null,null,null,null,"住　所\n※個人番号を記入した場合は、住所記入は不要です",null,null,null,null,null,null,null,null,"（ﾌﾘｶﾞﾅ）",null,null,null,null,{"$f":"IF(区分変更者情報入力!G99>10,\"\",IF(ISTEXT(区分変更者情報入力!D103),区分変更者情報入力!D103,\"\"))","v":""}]
[]
[null,null,null,null,null,null,null,null,null,"個人番号（または基礎年金番号）\n",null,null,null,null,null,null,null,null,null,null,null,null,null,null,null,null,null,null,null,null,null,null,null,null,null,null,null,null,null,null,null,null,null,null,null,null,null,null,null,null,null,null,null,null,null,null,null,null,null,null,null,null,null,null,null,null,null,null,null,null,null,null,null,null,null,{"$f":"IF(区分変更者情報入力!G99>10,\"\",IF(ISTEXT(区分変更者情報入力!D102),区分変更者情報入力!D102,\"\"))","v":""}]
[]
[]
[]
[]
[null,null,null,null,null,null,null,null,null,"※⑤",null,null,null,null,null,null,null,null,{"$f":"IF(ISNUMBER(区分変更者情報入力!D104),VLOOKUP(区分変更者情報入力!D104,区分変更者情報入力!G101:H102,2,0),\"　１． 70歳以上被用者\n　２． 高齢任意加入被保険者\")","v":"　１． 70歳以上被用者\n　２． 高齢任意加入被保険者"},null,null,null,null,null,null,null,null,null,null,null,null,null,null,null,null,null,null,null,"⑥",null,null,null,null,null,null,null,null,{"$f":"IF(ISNUMBER(区分変更者情報入力!D100),VLOOKUP(区分変更者情報入力!D100,区分変更者情報入力!G97:H98,2,0),\"０．一般\n１．短時間労働者(3/4未満)\")","v":"０．一般\n１．短時間労働者(3/4未満)"},null,null,null,null,null,null,null,null,null,null,null,null,null,null,null,null,null,null,"⑦",null,null,null,null,null,null,null,null,{"$f":"IF(ISNUMBER(区分変更者情報入力!D101),区分変更者情報入力!D101,\"\")","v":""},null,null,null,null,null,null,null,null,null,null,null,null,null,null,null,null,null,null,null,null,null,null,null,null,null,null,null,null,null,null,null,"備 考"]
[]
[null,null,null,null,null,null,null,null,null,null,"処理\n区分",null,null,null,null,null,null,null,null,null,null,null,null,null,null,null,null,null,null,null,null,null,null,null,null,null,null,null,null,"変更後\n区分",null,null,null,null,null,null,null,null,null,null,null,null,null,null,null,null,null,null,null,null,null,null,null,null,null,null,null,"変更\n年月日"]
[]
[]
[]
[]
[]
[null,null,null,"　※「⑤」は該当しない場合記入不要です。"]

{"sheet":"健保通知書","index":4,"n_rows":167,"n_cols":108,"rows_kept":167,"cut":false,"hidden":false,"merged":[[16,9,21,19],[16,26,21,28],[27,21,30,67],[31,10,34,16],[31,21,37,67],[38,10,41,16],[38,62,44,67],[38,21,44,61],[0,3,1,11],[0,12,1,20],[0,26,4,37],[5,40,9,78],[6,26,8,37],[2,3,6,5],[2,6,6,8],[2,9,6,11],[2,12,6,14],[2,15,6,17],[2,18,6,20],[12,6,14,31],[45,72,49,128],[52,3,72,7],[52,9,53,10],[52,18,58,29],[52,30,58,36],[52,37,53,42],[52,90,53,91],[45,10,48,16],[54,10,57,16],[54,91,57,95],[16,3,49,7],[45,21,49,67],[43,72,44,73],[43,74,44,80],[43,81,44,121],[16,102,18,128],[23,18,24,67],[24,10,27,16],[25,19,26,20],[16,41,21,52],[16,20,21,25],[16,29,21,40],[16,53,21,67],[25,21,26,35],[59,75,60,79],[59,80,60,128],[61,9,65,17],[61,75,65,128],[59,9,60,10],[59,18,65,65],[52,43,53,89],[52,97,58,128],[54,37,58,42],[54,43,58,89],[68,10,71,16],[68,39,71,45],[68,67,71,73],[66,9,67,11],[66,18,72,37],[66,38,67,39],[66,47,72,65],[66,66,67,67],[59,66,65,74],[75,3,95,7],[75,9,76,10],[75,18,81,29],[75,30,81,36],[75,37,76,42],[77,10,80,16],[82,66,88,74],[82,75,83,79],[82,80,83,128],[84,9,88,17],[84,75,88,128],[91,10,94,16],[91,39,94,45],[91,67,94,73],[89,9,90,11],[89,18,95,37],[89,38,90,39],[89,47,95,65],[89,66,90,67],[82,9,83,10],[105,9,106,10],[105,18,111,65],[112,75,118,106],[98,90,99,91],[100,91,103,95],[98,3,118,7],[98,9,99,10],[98,18,104,29],[98,30,104,36],[98,37,99,42],[100,10,103,16],[105,66,111,74],[105,75,106,79],[105,80,106,128],[107,9,111,17],[107,75,111,128],[112,107,118,111],[112,112,118,128],[114,10,117,16],[114,39,117,45],[114,67,117,73],[112,9,113,11],[112,18,118,37],[112,38,113,39],[128,9,129,10],[121,90,122,91],[123,91,126,95],[121,43,122,89],[121,97,127,128],[121,3,141,7],[121,9,122,10],[121,18,127,29],[121,30,127,36],[121,37,122,42],[123,10,126,16],[128,66,134,74],[128,75,129,79],[128,80,129,128],[130,9,134,17],[130,75,134,128],[123,37,127,42],[123,43,127,89],[128,18,134,65],[146,10,149,16],[135,107,141,111],[135,112,141,128],[137,10,140,16],[137,39,140,45],[137,67,140,73],[135,9,136,11],[135,18,141,37],[135,38,136,39],[135,47,141,65],[135,66,136,67],[135,75,141,106],[144,43,145,89],[144,97,150,128],[146,37,150,42],[146,43,150,89],[166,3,168,48],[0,40,4,86],[151,66,157,74],[151,75,152,79],[151,80,152,128],[153,9,157,17],[153,75,157,128],[151,9,152,10],[158,107,164,111],[158,112,164,128],[160,10,163,16],[160,39,163,45],[158,9,159,11],[158,18,164,37],[158,38,159,39],[158,47,164,65],[158,66,159,67],[160,67,163,73],[158,75,164,106],[146,91,149,95],[144,3,164,7],[144,9,145,10],[144,18,150,29],[144,30,150,36],[151,18,157,65],[144,37,145,42],[144,90,145,91],[66,75,72,106],[75,43,76,89],[75,97,81,128],[77,37,81,42],[77,43,81,89],[82,18,88,65],[89,75,95,106],[98,43,99,89],[98,97,104,128],[100,37,104,42],[100,43,104,89],[89,107,95,111],[89,112,95,128],[75,90,76,91],[77,91,80,95],[66,107,72,111],[66,112,72,128],[112,47,118,65],[112,66,113,67]]}
[null,null,null,null,null,null,null,null,null,null,null,null,null,null,null,null,null,null,null,null,null,null,null,null,null,null,"健康保険",null,null,null,null,null,null,null,null,null,null,null,null,null,"被保険者区分変更通知書"]
[]
[]
[]
[]
[]
[]
[]
[]
[]
[]
[]
[null,null,null,null,null,null,{"$f":"基本情報登録!C2","v":"2022-11-02"}]
[]
[]
[]
[null,null,null,"提出者記入欄",null,null,null,null,null,"① 事業所\n　整理記号",null,null,null,null,null,null,null,null,null,null,{"$f":"基本情報登録!C3","v":"南"},null,null,null,null,null,"－",null,null,{"$f":"基本情報登録!C4","v":"ＷＥＤ"},null,null,null,null,null,null,null,null,null,null,null,"健保記号",null,null,null,null,null,null,null,null,null,null,null,{"$f":"基本情報登録!C6","v":"532"},null,null,null,null,null,null,null,null,null,null,null,null,null,null,null,null,null,null,null,null,null,null,null,null,null,null,null,null,null,null,null,null,null,null,null,null,null,null,null,null,null,null,null,null,null,null,null,null,"受付印"]
[]
[]
[]
[]
[]
[]
[null,null,null,null,null,null,null,null,null,null,null,null,null,null,null,null,null,null,"　届書記入の個人番号に誤りがないことを確認しました。"]
[null,null,null,null,null,null,null,null,null,null,"事業所\n所在地"]
[null,null,null,null,null,null,null,null,null,null,null,null,null,null,null,null,null,null,null,"〒",null,{"$f":"基本情報登録!C7","v":"542-0066"}]
[]
[null,null,null,null,null,null,null,null,null,null,null,null,null,null,null,null,null,null,null,null,null,{"$f":"基本情報登録!C8","v":"大阪府大阪市中央区瓦屋町2-3-1"}]
[]
[]
[]
[null,null,null,null,null,null,null,null,null,null,"事業所\n名　称",null,null,null,null,null,null,null,null,null,null,{"$f":"基本情報登録!C9","v":"大阪自動車整備健康保険組合"}]
[]
[]
[]
[]
[]
[]
[null,null,null,null,null,null,null,null,null,null,"事業主\n氏　名",null,null,null,null,null,null,null,null,null,null,{"$f":"基本情報登録!C10","v":"理事長　健保　太郎"},null,null,null,null,null,null,null,null,null,null,null,null,null,null,null,null,null,null,null,null,null,null,null,null,null,null,null,null,null,null,null,null,null,null,null,null,null,null,null,null,"様"]
[]
[]
[]
[]
[null,null,null,null,null,null,null,null,null,null,null,null,null,null,null,null,null,null,null,null,null,null,null,null,null,null,null,null,null,null,null,null,null,null,null,null,null,null,null,null,null,null,null,null,null,null,null,null,null,null,null,null,null,null,null,null,null,null,null,null,null,null,null,null,null,null,null,null,null,null,null,null,null,null,"氏名等"]
[]
[null,null,null,null,null,null,null,null,null,null,"電話番号",null,null,null,null,null,null,null,null,null,null,{"$f":"基本情報登録!C11","v":"06-6762-6371"}]
[]
[]
[]
[]
[]
[]
[null,null,null,"被保険者（被用者）１",null,null,null,null,null,"②",null,null,null,null,null,null,null,null,{"$f":"IF(ISTEXT(区分変更者情報入力!D3),区分変更者情報入力!D3,\"\")","v":"1045"},null,null,null,null,null,null,null,null,null,null,null,"氏　名",null,null,null,null,null,null,"（ﾌﾘｶﾞﾅ）",null,null,null,null,null,{"$f":"IF(ISTEXT(区分変更者情報入力!D5),区分変更者情報入力!D5,\"\")","v":"ケンポ　サブロウ"},null,null,null,null,null,null,null,null,null,null,null,null,null,null,null,null,null,null,null,null,null,null,null,null,null,null,null,null,null,null,null,null,null,null,null,null,null,null,null,null,null,null,null,null,null,null,"④",null,null,null,null,null,null,{"$f":"IF(ISNUMBER(区分変更者情報入力!D6),区分変更者情報入力!D6,\"\")","v":"1951-07-01"}]
[]
[null,null,null,null,null,null,null,null,null,null,"番号",null,null,null,null,null,null,null,null,null,null,null,null,null,null,null,null,null,null,null,null,null,null,null,null,null,null,null,null,null,null,null,null,{"$f":"IF(ISTEXT(区分変更者情報入力!D4),区分変更者情報入力!D4,\"\")","v":"健保　三朗"},null,null,null,null,null,null,null,null,null,null,null,null,null,null,null,null,null,null,null,null,null,null,null,null,null,null,null,null,null,null,null,null,null,null,null,null,null,null,null,null,null,null,null,null,null,null,null,"生年\n月日"]
[]
[]
[]
[]
[null,null,null,null,null,null,null,null,null,"③",null,null,null,null,null,null,null,null,null,null,null,null,null,null,null,null,null,null,null,null,null,null,null,null,null,null,null,null,null,null,null,null,null,null,null,null,null,null,null,null,null,null,null,null,null,null,null,null,null,null,null,null,null,null,null,null,"住　所\n※個人番号を記入した場合は、住所記入は不要です",null,null,null,null,null,null,null,null,"（ﾌﾘｶﾞﾅ）",null,null,null,null,{"$f":"IF(区分変更者情報入力!G7>10,\"\",IF(ISTEXT(区分変更者情報入力!D11),区分変更者情報入力!D11,\"\"))","v":"ｵｵｻｶﾌｵｵｻｶｼﾁｭｳｵｳｸｶﾜﾗﾔﾏﾁ"}]
[]
[null,null,null,null,null,null,null,null,null,"個人番号（または基礎年金番号）\n",null,null,null,null,null,null,null,null,null,null,null,null,null,null,null,null,null,null,null,null,null,null,null,null,null,null,null,null,null,null,null,null,null,null,null,null,null,null,null,null,null,null,null,null,null,null,null,null,null,null,null,null,null,null,null,null,null,null,null,null,null,null,null,null,null,{"$f":"IF(区分変更者情報入力!G7>10,\"\",IF(ISTEXT(区分変更者情報入力!D10),区分変更者情報入力!D10,\"\"))","v":"大阪府大阪市中央区瓦屋町2-3-1"}]
[]
[]
[]
[]
[null,null,null,null,null,null,null,null,null,"※⑤",null,null,null,null,null,null,null,null,{"$f":"IF(ISNUMBER(区分変更者情報入力!D12),VLOOKUP(区分変更者情報入力!D12,区分変更者情報入力!G9:H10,2,0),\"　１． 70歳以上被用者\n　２． 高齢任意加入被保険者\")","v":"　１． 70歳以上被用者\n　２． 高齢任意加入被保険者"},null,null,null,null,null,null,null,null,null,null,null,null,null,null,null,null,null,null,null,"⑥",null,null,null,null,null,null,null,null,{"$f":"IF(ISNUMBER(区分変更者情報入力!D8),VLOOKUP(区分変更者情報入力!D8,区分変更者情報入力!G5:H6,2,0),\"０．一般\n１．短時間労働者(3/4未満)\")","v":"０．一般"},null,null,null,null,null,null,null,null,null,null,null,null,null,null,null,null,null,null,"⑦",null,null,null,null,null,null,null,null,{"$f":"IF(ISNUMBER(区分変更者情報入力!D9),区分変更者情報入力!D9,\"\")","v":"2022-10-01"},null,null,null,null,null,null,null,null,null,null,null,null,null,null,null,null,null,null,null,null,null,null,null,null,null,null,null,null,null,null,null,"備 考"]
[]
[null,null,null,null,null,null,null,null,null,null,"処理\n区分",null,null,null,null,null,null,null,null,null,null,null,null,null,null,null,null,null,null,null,null,null,null,null,null,null,null,null,null,"変更後\n区分",null,null,null,null,null,null,null,null,null,null,null,null,null,null,null,null,null,null,null,null,null,null,null,null,null,null,null,"変更\n年月日"]
[]
[]
[]
[]
[]
[]
[null,null,null,"被保険者（被用者）２",null,null,null,null,null,"②",null,null,null,null,null,null,null,null,{"$f":"IF(ISTEXT(区分変更者情報入力!D26),区分変更者情報入力!D26,\"\")","v":""},null,null,null,null,null,null,null,null,null,null,null,"氏　名",null,null,null,null,null,null,"（ﾌﾘｶﾞﾅ）",null,null,null,null,null,{"$f":"IF(ISTEXT(区分変更者情報入力!D28),区分変更者情報入力!D28,\"\")","v":""},null,null,null,null,null,null,null,null,null,null,null,null,null,null,null,null,null,null,null,null,null,null,null,null,null,null,null,null,null,null,null,null,null,null,null,null,null,null,null,null,null,null,null,null,null,null,"④",null,null,null,null,null,null,{"$f":"IF(ISNUMBER(区分変更者情報入力!D29),区分変更者情報入力!D29,\"\")","v":""}]
[]
[null,null,null,null,null,null,null,null,null,null,"番号",null,null,null,null,null,null,null,null,null,null,null,null,null,null,null,null,null,null,null,null,null,null,null,null,null,null,null,null,null,null,null,null,{"$f":"IF(ISTEXT(区分変更者情報入力!D27),区分変更者情報入力!D27,\"\")","v":""},null,null,null,null,null,null,null,null,null,null,null,null,null,null,null,null,null,null,null,null,null,null,null,null,null,null,null,null,null,null,null,null,null,null,null,null,null,null,null,null,null,null,null,null,null,null,null,"生年\n月日"]
[]
[]
[]
[]
[null,null,null,null,null,null,null,null,null,"③",null,null,null,null,null,null,null,null,null,null,null,null,null,null,null,null,null,null,null,null,null,null,null,null,null,null,null,null,null,null,null,null,null,null,null,null,null,null,null,null,null,null,null,null,null,null,null,null,null,null,null,null,null,null,null,null,"住　所\n※個人番号を記入した場合は、住所記入は不要です",null,null,null,null,null,null,null,null,"（ﾌﾘｶﾞﾅ）",null,null,null,null,{"$f":"IF(区分変更者情報入力!G30>10,\"\",IF(ISTEXT(区分変更者情報入力!D34),区分変更者情報入力!D34,\"\"))","v":""}]
[]
[null,null,null,null,null,null,null,null,null,"個人番号（または基礎年金番号）\n",null,null,null,null,null,null,null,null,null,null,null,null,null,null,null,null,null,null,null,null,null,null,null,null,null,null,null,null,null,null,null,null,null,null,null,null,null,null,null,null,null,null,null,null,null,null,null,null,null,null,null,null,null,null,null,null,null,null,null,null,null,null,null,null,null,{"$f":"IF(区分変更者情報入力!G30>10,\"\",IF(ISTEXT(区分変更者情報入力!D33),区分変更者情報入力!D33,\"\"))","v":""}]
[]
[]
[]
[]
[null,null,null,null,null,null,null,null,null,"※⑤",null,null,null,null,null,null,null,null,{"$f":"IF(ISNUMBER(区分変更者情報入力!D35),VLOOKUP(区分変更者情報入力!D35,区分変更者情報入力!G32:H33,2,0),\"　１． 70歳以上被用者\n　２． 高齢任意加入被保険者\")","v":"　１． 70歳以上被用者\n　２． 高齢任意加入被保険者"},null,null,null,null,null,null,null,null,null,null,null,null,null,null,null,null,null,null,null,"⑥",null,null,null,null,null,null,null,null,{"$f":"IF(ISNUMBER(区分変更者情報入力!D31),VLOOKUP(区分変更者情報入力!D31,区分変更者情報入力!G28:H29,2,0),\"０．一般\n１．短時間労働者(3/4未満)\")","v":"０．一般\n１．短時間労働者(3/4未満)"},null,null,null,null,null,null,null,null,null,null,null,null,null,null,null,null,null,null,"⑦",null,null,null,null,null,null,null,null,{"$f":"IF(ISNUMBER(区分変更者情報入力!D32),区分変更者情報入力!D32,\"\")","v":""},null,null,null,null,null,null,null,null,null,null,null,null,null,null,null,null,null,null,null,null,null,null,null,null,null,null,null,null,null,null,null,"備 考"]
[]
[null,null,null,null,null,null,null,null,null,null,"処理\n区分",null,null,null,null,null,null,null,null,null,null,null,null,null,null,null,null,null,null,null,null,null,null,null,null,null,null,null,null,"変更後\n区分",null,null,null,null,null,null,null,null,null,null,null,null,null,null,null,null,null,null,null,null,null,null,null,null,null,null,null,"変更\n年月日"]
[]
[]
[]
[]
[]
[]
[null,null,null,"被保険者（被用者）３",null,null,null,null,null,"②",null,null,null,null,null,null,null,null,{"$f":"IF(ISTEXT(区分変更者情報入力!D49),区分変更者情報入力!D49,\"\")","v":""},null,null,null,null,null,null,null,null,null,null,null,"氏　名",null,null,null,null,null,null,"（ﾌﾘｶﾞﾅ）",null,null,null,null,null,{"$f":"IF(ISTEXT(区分変更者情報入力!D51),区分変更者情報入力!D51,\"\")","v":""},null,null,null,null,null,null,null,null,null,null,null,null,null,null,null,null,null,null,null,null,null,null,null,null,null,null,null,null,null,null,null,null,null,null,null,null,null,null,null,null,null,null,null,null,null,null,"④",null,null,null,null,null,null,{"$f":"IF(ISNUMBER(区分変更者情報入力!D52),区分変更者情報入力!D52,\"\")","v":""}]
[]
[null,null,null,null,null,null,null,null,null,null,"番号",null,null,null,null,null,null,null,null,null,null,null,null,null,null,null,null,null,null,null,null,null,null,null,null,null,null,null,null,null,null,null,null,{"$f":"IF(ISTEXT(区分変更者情報入力!D50),区分変更者情報入力!D50,\"\")","v":""},null,null,null,null,null,null,null,null,null,null,null,null,null,null,null,null,null,null,null,null,null,null,null,null,null,null,null,null,null,null,null,null,null,null,null,null,null,null,null,null,null,null,null,null,null,null,null,"生年\n月日"]
[]
[]
[]
[]
[null,null,null,null,null,null,null,null,null,"③",null,null,null,null,null,null,null,null,null,null,null,null,null,null,null,null,null,null,null,null,null,null,null,null,null,null,null,null,null,null,null,null,null,null,null,null,null,null,null,null,null,null,null,null,null,null,null,null,null,null,null,null,null,null,null,null,"住　所\n※個人番号を記入した場合は、住所記入は不要です",null,null,null,null,null,null,null,null,"（ﾌﾘｶﾞﾅ）",null,null,null,null,{"$f":"IF(区分変更者情報入力!G53>10,\"\",IF(ISTEXT(区分変更者情報入力!D57),区分変更者情報入力!D57,\"\"))","v":""}]
[]
[null,null,null,null,null,null,null,null,null,"個人番号（または基礎年金番号）\n",null,null,null,null,null,null,null,null,null,null,null,null,null,null,null,null,null,null,null,null,null,null,null,null,null,null,null,null,null,null,null,null,null,null,null,null,null,null,null,null,null,null,null,null,null,null,null,null,null,null,null,null,null,null,null,null,null,null,null,null,null,null,null,null,null,{"$f":"IF(区分変更者情報入力!G53>10,\"\",IF(ISTEXT(区分変更者情報入力!D56),区分変更者情報入力!D56,\"\"))","v":""}]
[]
[]
[]
[]
[null,null,null,null,null,null,null,null,null,"※⑤",null,null,null,null,null,null,null,null,{"$f":"IF(ISNUMBER(区分変更者情報入力!D58),VLOOKUP(区分変更者情報入力!D58,区分変更者情報入力!G55:H56,2,0),\"　１． 70歳以上被用者\n　２． 高齢任意加入被保険者\")","v":"　１． 70歳以上被用者\n　２． 高齢任意加入被保険者"},null,null,null,null,null,null,null,null,null,null,null,null,null,null,null,null,null,null,null,"⑥",null,null,null,null,null,null,null,null,{"$f":"IF(ISNUMBER(区分変更者情報入力!D54),VLOOKUP(区分変更者情報入力!D54,区分変更者情報入力!G51:H52,2,0),\"０．一般\n１．短時間労働者(3/4未満)\")","v":"０．一般\n１．短時間労働者(3/4未満)"},null,null,null,null,null,null,null,null,null,null,null,null,null,null,null,null,null,null,"⑦",null,null,null,null,null,null,null,null,{"$f":"IF(ISNUMBER(区分変更者情報入力!D55),区分変更者情報入力!D55,\"\")","v":""},null,null,null,null,null,null,null,null,null,null,null,null,null,null,null,null,null,null,null,null,null,null,null,null,null,null,null,null,null,null,null,"備 考"]
[]
[null,null,null,null,null,null,null,null,null,null,"処理\n区分",null,null,null,null,null,null,null,null,null,null,null,null,null,null,null,null,null,null,null,null,null,null,null,null,null,null,null,null,"変更後\n区分",null,null,null,null,null,null,null,null,null,null,null,null,null,null,null,null,null,null,null,null,null,null,null,null,null,null,null,"変更\n年月日"]
[]
[]
[]
[]
[]
[]
[null,null,null,"被保険者（被用者）４",null,null,null,null,null,"②",null,null,null,null,null,null,null,null,{"$f":"IF(ISTEXT(区分変更者情報入力!D72),区分変更者情報入力!D72,\"\")","v":""},null,null,null,null,null,null,null,null,null,null,null,"氏　名",null,null,null,null,null,null,"（ﾌﾘｶﾞﾅ）",null,null,null,null,null,{"$f":"IF(ISTEXT(区分変更者情報入力!D74),区分変更者情報入力!D74,\"\")","v":""},null,null,null,null,null,null,null,null,null,null,null,null,null,null,null,null,null,null,null,null,null,null,null,null,null,null,null,null,null,null,null,null,null,null,null,null,null,null,null,null,null,null,null,null,null,null,"④",null,null,null,null,null,null,{"$f":"IF(ISNUMBER(区分変更者情報入力!D75),区分変更者情報入力!D75,\"\")","v":""}]
[]
[null,null,null,null,null,null,null,null,null,null,"番号",null,null,null,null,null,null,null,null,null,null,null,null,null,null,null,null,null,null,null,null,null,null,null,null,null,null,null,null,null,null,null,null,{"$f":"IF(ISTEXT(区分変更者情報入力!D73),区分変更者情報入力!D73,\"\")","v":""},null,null,null,null,null,null,null,null,null,null,null,null,null,null,null,null,null,null,null,null,null,null,null,null,null,null,null,null,null,null,null,null,null,null,null,null,null,null,null,null,null,null,null,null,null,null,null,"生年\n月日"]
[]
[]
[]
[]
[null,null,null,null,null,null,null,null,null,"③",null,null,null,null,null,null,null,null,null,null,null,null,null,null,null,null,null,null,null,null,null,null,null,null,null,null,null,null,null,null,null,null,null,null,null,null,null,null,null,null,null,null,null,null,null,null,null,null,null,null,null,null,null,null,null,null,"住　所\n※個人番号を記入した場合は、住所記入は不要です",null,null,null,null,null,null,null,null,"（ﾌﾘｶﾞﾅ）",null,null,null,null,{"$f":"IF(区分変更者情報入力!G76>10,\"\",IF(ISTEXT(区分変更者情報入力!D80),区分変更者情報入力!D80,\"\"))","v":""}]
[]
[null,null,null,null,null,null,null,null,null,"個人番号（または基礎年金番号）\n",null,null,null,null,null,null,null,null,null,null,null,null,null,null,null,null,null,null,null,null,null,null,null,null,null,null,null,null,null,null,null,null,null,null,null,null,null,null,null,null,null,null,null,null,null,null,null,null,null,null,null,null,null,null,null,null,null,null,null,null,null,null,null,null,null,{"$f":"IF(区分変更者情報入力!G76>10,\"\",IF(ISTEXT(区分変更者情報入力!D79),区分変更者情報入力!D79,\"\"))","v":""}]
[]
[]
[]
[]
[null,null,null,null,null,null,null,null,null,"※⑤",null,null,null,null,null,null,null,null,{"$f":"IF(ISNUMBER(区分変更者情報入力!D81),VLOOKUP(区分変更者情報入力!D81,区分変更者情報入力!G78:H79,2,0),\"　１． 70歳以上被用者\n　２． 高齢任意加入被保険者\")","v":"　１． 70歳以上被用者\n　２． 高齢任意加入被保険者"},null,null,null,null,null,null,null,null,null,null,null,null,null,null,null,null,null,null,null,"⑥",null,null,null,null,null,null,null,null,{"$f":"IF(ISNUMBER(区分変更者情報入力!D77),VLOOKUP(区分変更者情報入力!D77,区分変更者情報入力!G74:H75,2,0),\"０．一般\n１．短時間労働者(3/4未満)\")","v":"０．一般\n１．短時間労働者(3/4未満)"},null,null,null,null,null,null,null,null,null,null,null,null,null,null,null,null,null,null,"⑦",null,null,null,null,null,null,null,null,{"$f":"IF(ISNUMBER(区分変更者情報入力!D78),区分変更者情報入力!D78,\"\")","v":""},null,null,null,null,null,null,null,null,null,null,null,null,null,null,null,null,null,null,null,null,null,null,null,null,null,null,null,null,null,null,null,"備 考"]
[]
[null,null,null,null,null,null,null,null,null,null,"処理\n区分",null,null,null,null,null,null,null,null,null,null,null,null,null,null,null,null,null,null,null,null,null,null,null,null,null,null,null,null,"変更後\n区分",null,null,null,null,null,null,null,null,null,null,null,null,null,null,null,null,null,null,null,null,null,null,null,null,null,null,null,"変更\n年月日"]
[]
[]
[]
[]
[]
[]
[null,null,null,"被保険者（被用者）５",null,null,null,null,null,"②",null,null,null,null,null,null,null,null,{"$f":"IF(ISTEXT(区分変更者情報入力!D95),区分変更者情報入力!D95,\"\")","v":""},null,null,null,null,null,null,null,null,null,null,null,"氏　名",null,null,null,null,null,null,"（ﾌﾘｶﾞﾅ）",null,null,null,null,null,{"$f":"IF(ISTEXT(区分変更者情報入力!D97),区分変更者情報入力!D97,\"\")","v":""},null,null,null,null,null,null,null,null,null,null,null,null,null,null,null,null,null,null,null,null,null,null,null,null,null,null,null,null,null,null,null,null,null,null,null,null,null,null,null,null,null,null,null,null,null,null,"④",null,null,null,null,null,null,{"$f":"IF(ISNUMBER(区分変更者情報入力!D98),区分変更者情報入力!D98,\"\")","v":""}]
[]
[null,null,null,null,null,null,null,null,null,null,"番号",null,null,null,null,null,null,null,null,null,null,null,null,null,null,null,null,null,null,null,null,null,null,null,null,null,null,null,null,null,null,null,null,{"$f":"IF(ISTEXT(区分変更者情報入力!D96),区分変更者情報入力!D96,\"\")","v":""},null,null,null,null,null,null,null,null,null,null,null,null,null,null,null,null,null,null,null,null,null,null,null,null,null,null,null,null,null,null,null,null,null,null,null,null,null,null,null,null,null,null,null,null,null,null,null,"生年\n月日"]
[]
[]
[]
[]
[null,null,null,null,null,null,null,null,null,"③",null,null,null,null,null,null,null,null,null,null,null,null,null,null,null,null,null,null,null,null,null,null,null,null,null,null,null,null,null,null,null,null,null,null,null,null,null,null,null,null,null,null,null,null,null,null,null,null,null,null,null,null,null,null,null,null,"住　所\n※個人番号を記入した場合は、住所記入は不要です",null,null,null,null,null,null,null,null,"（ﾌﾘｶﾞﾅ）",null,null,null,null,{"$f":"IF(区分変更者情報入力!G99>10,\"\",IF(ISTEXT(区分変更者情報入力!D103),区分変更者情報入力!D103,\"\"))","v":""}]
[]
[null,null,null,null,null,null,null,null,null,"個人番号（または基礎年金番号）\n",null,null,null,null,null,null,null,null,null,null,null,null,null,null,null,null,null,null,null,null,null,null,null,null,null,null,null,null,null,null,null,null,null,null,null,null,null,null,null,null,null,null,null,null,null,null,null,null,null,null,null,null,null,null,null,null,null,null,null,null,null,null,null,null,null,{"$f":"IF(区分変更者情報入力!G99>10,\"\",IF(ISTEXT(区分変更者情報入力!D102),区分変更者情報入力!D102,\"\"))","v":""}]
[]
[]
[]
[]
[null,null,null,null,null,null,null,null,null,"※⑤",null,null,null,null,null,null,null,null,{"$f":"IF(ISNUMBER(区分変更者情報入力!D104),VLOOKUP(区分変更者情報入力!D104,区分変更者情報入力!G101:H102,2,0),\"　１． 70歳以上被用者\n　２． 高齢任意加入被保険者\")","v":"　１． 70歳以上被用者\n　２． 高齢任意加入被保険者"},null,null,null,null,null,null,null,null,null,null,null,null,null,null,null,null,null,null,null,"⑥",null,null,null,null,null,null,null,null,{"$f":"IF(ISNUMBER(区分変更者情報入力!D100),VLOOKUP(区分変更者情報入力!D100,区分変更者情報入力!G97:H98,2,0),\"０．一般\n１．短時間労働者(3/4未満)\")","v":"０．一般\n１．短時間労働者(3/4未満)"},null,null,null,null,null,null,null,null,null,null,null,null,null,null,null,null,null,null,"⑦",null,null,null,null,null,null,null,null,{"$f":"IF(ISNUMBER(区分変更者情報入力!D101),区分変更者情報入力!D101,\"\")","v":""},null,null,null,null,null,null,null,null,null,null,null,null,null,null,null,null,null,null,null,null,null,null,null,null,null,null,null,null,null,null,null,"備 考"]
[]
[null,null,null,null,null,null,null,null,null,null,"処理\n区分",null,null,null,null,null,null,null,null,null,null,null,null,null,null,null,null,null,null,null,null,null,null,null,null,null,null,null,null,"変更後\n区分",null,null,null,null,null,null,null,null,null,null,null,null,null,null,null,null,null,null,null,null,null,null,null,null,null,null,null,"変更\n年月日"]
[]
[]
[]
[]
[]
[null,null,null,"　※「⑤」は該当しない場合記入不要です。"]

{"sheet":"年金","index":5,"n_rows":167,"n_cols":119,"rows_kept":167,"cut":false,"hidden":false,"merged":[[38,21,44,67],[38,10,41,16],[0,106,1,117],[1,118,2,129],[2,3,6,5],[2,6,6,8],[2,9,6,11],[2,12,6,14],[2,15,6,17],[2,18,6,20],[2,26,4,37],[2,82,3,93],[0,3,1,11],[0,12,1,20],[0,26,1,37],[0,40,4,77],[0,82,1,93],[0,94,1,105],[2,94,3,105],[2,106,3,117],[5,40,9,78],[43,72,44,73],[43,74,44,80],[43,81,44,121],[45,10,48,16],[45,72,49,128],[45,21,49,67],[16,102,18,128],[23,18,24,67],[24,10,27,16],[25,19,26,20],[16,41,21,52],[16,9,21,19],[16,26,21,28],[27,21,30,67],[16,20,21,25],[16,29,21,40],[16,53,21,67],[25,21,26,35],[12,6,14,31],[6,26,8,37],[16,3,49,7],[31,10,34,16],[31,21,37,67],[59,9,60,10],[59,18,65,65],[52,43,53,89],[52,97,58,128],[54,37,58,42],[54,43,58,89],[52,3,72,7],[52,9,53,10],[52,18,58,29],[52,30,58,36],[52,37,53,42],[52,90,53,91],[54,10,57,16],[54,91,57,95],[59,66,65,74],[59,75,60,79],[59,80,60,128],[61,9,65,17],[61,75,65,128],[66,107,72,111],[66,112,72,128],[68,10,71,16],[68,39,71,45],[68,67,71,73],[66,9,67,11],[66,18,72,37],[66,38,67,39],[66,47,72,65],[66,66,67,67],[82,9,83,10],[75,90,76,91],[77,91,80,95],[75,3,95,7],[75,9,76,10],[75,18,81,29],[75,30,81,36],[75,37,76,42],[77,10,80,16],[82,66,88,74],[82,75,83,79],[82,80,83,128],[84,9,88,17],[84,75,88,128],[89,107,95,111],[89,112,95,128],[91,10,94,16],[91,39,94,45],[91,67,94,73],[89,9,90,11],[89,18,95,37],[89,38,90,39],[89,47,95,65],[89,66,90,67],[105,9,106,10],[105,18,111,65],[112,75,118,106],[98,90,99,91],[100,91,103,95],[98,3,118,7],[98,9,99,10],[98,18,104,29],[98,30,104,36],[98,37,99,42],[100,10,103,16],[105,66,111,74],[105,75,106,79],[105,80,106,128],[107,9,111,17],[107,75,111,128],[112,107,118,111],[112,112,118,128],[114,10,117,16],[114,39,117,45],[114,67,117,73],[112,9,113,11],[112,18,118,37],[112,38,113,39],[112,47,118,65],[112,66,113,67],[128,9,129,10],[121,90,122,91],[123,91,126,95],[121,43,122,89],[121,97,127,128],[121,3,141,7],[121,9,122,10],[121,18,127,29],[121,30,127,36],[121,37,122,42],[123,10,126,16],[128,66,134,74],[128,75,129,79],[128,80,129,128],[130,9,134,17],[130,75,134,128],[123,37,127,42],[123,43,127,89],[128,18,134,65],[158,38,159,39],[158,47,164,65],[158,66,159,67],[144,90,145,91],[146,91,149,95],[153,9,157,17],[153,75,157,128],[135,107,141,111],[135,112,141,128],[137,10,140,16],[137,39,140,45],[137,67,140,73],[135,9,136,11],[135,18,141,37],[135,38,136,39],[135,47,141,65],[135,66,136,67],[135,75,141,106],[166,3,168,48],[144,3,164,7],[144,9,145,10],[144,18,150,29],[144,30,150,36],[144,37,145,42],[146,10,149,16],[151,66,157,74],[151,75,152,79],[151,9,152,10],[158,75,164,106],[144,43,145,89],[144,97,150,128],[146,37,150,42],[146,43,150,89],[151,18,157,65],[158,107,164,111],[151,80,152,128],[158,112,164,128],[160,10,163,16],[160,39,163,45],[160,67,163,73],[158,9,159,11],[158,18,164,37],[66,75,72,106],[75,43,76,89],[75,97,81,128],[77,37,81,42],[77,43,81,89],[82,18,88,65],[89,75,95,106],[98,43,99,89],[98,97,104,128],[100,37,104,42],[100,43,104,89]]}
[null,null,null,null,null,null,null,null,null,null,null,null,null,null,null,null,null,null,null,null,null,null,null,null,null,null,"健康保険",null,null,null,null,null,null,null,null,null,null,null,null,null,"被保険者区分変更届",null,null,null,null,null,null,null,null,null,null,null,null,null,null,null,null,null,null,null,null,null,null,null,null,null,null,null,null,null,null,null,null,null,null,null,null,null,null,null,null,null,"事務センター長",null,null,null,null,null,null,null,null,null,null,null,"副事務センター長",null,null,null,null,null,null,null,null,null,null,null,"グループ長"]
[null,null,null,null,null,null,null,null,null,null,null,null,null,null,null,null,null,null,null,null,null,null,null,null,null,null,null,null,null,null,null,null,null,null,null,null,null,null,null,null,null,null,null,null,null,null,null,null,null,null,null,null,null,null,null,null,null,null,null,null,null,null,null,null,null,null,null,null,null,null,null,null,null,null,null,null,null,null,null,null,null,null,null,null,null,null,null,null,null,null,null,null,null,null,null,null,null,null,null,null,null,null,null,null,null,null,null,null,null,null,null,null,null,null,null,null,null,null,"担  当  者"]
[null,null,null,null,null,null,null,null,null,null,null,null,null,null,null,null,null,null,null,null,null,null,null,null,null,null,"厚生年金保険",null,null,null,null,null,null,null,null,null,null,null,null,null,null,null,null,null,null,null,null,null,null,null,null,null,null,null,null,null,null,null,null,null,null,null,null,null,null,null,null,null,null,null,null,null,null,null,null,null,null,null,null,null,null,null,"所　　　　　　長",null,null,null,null,null,null,null,null,null,null,null,"副　　  所　  　長",null,null,null,null,null,null,null,null,null,null,null,"課        長"]
[]
[]
[null,null,null,null,null,null,null,null,null,null,null,null,null,null,null,null,null,null,null,null,null,null,null,null,null,null,null,null,null,null,null,null,null,null,null,null,null,null,null,null,"70歳以上被用者区分変更届"]
[null,null,null,null,null,null,null,null,null,null,null,null,null,null,null,null,null,null,null,null,null,null,null,null,null,null,"厚生年金保険"]
[]
[]
[]
[]
[]
[null,null,null,null,null,null,{"$f":"基本情報登録!C2","v":"2022-11-02"}]
[]
[]
[]
[null,null,null,"提出者記入欄",null,null,null,null,null,"① 事業所\n　整理記号",null,null,null,null,null,null,null,null,null,null,{"$f":"基本情報登録!C3","v":"南"},null,null,null,null,null,"－",null,null,{"$f":"基本情報登録!C4","v":"ＷＥＤ"},null,null,null,null,null,null,null,null,null,null,null,"事 業 所 番 号",null,null,null,null,null,null,null,null,null,null,null,{"$f":"基本情報登録!C5","v":"00687"},null,null,null,null,null,null,null,null,null,null,null,null,null,null,null,null,null,null,null,null,null,null,null,null,null,null,null,null,null,null,null,null,null,null,null,null,null,null,null,null,null,null,null,null,null,null,null,null,"受付印"]
[]
[]
[]
[]
[]
[]
[null,null,null,null,null,null,null,null,null,null,null,null,null,null,null,null,null,null,"　届書記入の個人番号に誤りがないことを確認しました。"]
[null,null,null,null,null,null,null,null,null,null,"事業所\n所在地"]
[null,null,null,null,null,null,null,null,null,null,null,null,null,null,null,null,null,null,null,"〒",null,{"$f":"基本情報登録!C7","v":"542-0066"}]
[]
[null,null,null,null,null,null,null,null,null,null,null,null,null,null,null,null,null,null,null,null,null,{"$f":"基本情報登録!C8","v":"大阪府大阪市中央区瓦屋町2-3-1"}]
[]
[]
[]
[null,null,null,null,null,null,null,null,null,null,"事業所\n名　称",null,null,null,null,null,null,null,null,null,null,{"$f":"基本情報登録!C9","v":"大阪自動車整備健康保険組合"}]
[]
[]
[]
[]
[]
[]
[null,null,null,null,null,null,null,null,null,null,"事業主\n氏　名",null,null,null,null,null,null,null,null,null,null,{"$f":"基本情報登録!C10","v":"理事長　健保　太郎"}]
[]
[]
[]
[]
[null,null,null,null,null,null,null,null,null,null,null,null,null,null,null,null,null,null,null,null,null,null,null,null,null,null,null,null,null,null,null,null,null,null,null,null,null,null,null,null,null,null,null,null,null,null,null,null,null,null,null,null,null,null,null,null,null,null,null,null,null,null,null,null,null,null,null,null,null,null,null,null,null,null,"氏名等"]
[]
[null,null,null,null,null,null,null,null,null,null,"電話番号",null,null,null,null,null,null,null,null,null,null,{"$f":"基本情報登録!C11","v":"06-6762-6371"}]
[]
[]
[]
[]
[]
[]
[null,null,null,"被保険者（被用者）１",null,null,null,null,null,"②",null,null,null,null,null,null,null,null,{"$f":"IF(ISTEXT(区分変更者情報入力!D3),区分変更者情報入力!D3,\"\")","v":"1045"},null,null,null,null,null,null,null,null,null,null,null,"氏　名",null,null,null,null,null,null,"（ﾌﾘｶﾞﾅ）",null,null,null,null,null,{"$f":"IF(ISTEXT(区分変更者情報入力!D5),区分変更者情報入力!D5,\"\")","v":"ケンポ　サブロウ"},null,null,null,null,null,null,null,null,null,null,null,null,null,null,null,null,null,null,null,null,null,null,null,null,null,null,null,null,null,null,null,null,null,null,null,null,null,null,null,null,null,null,null,null,null,null,"④",null,null,null,null,null,null,{"$f":"IF(ISNUMBER(区分変更者情報入力!D6),区分変更者情報入力!D6,\"\")","v":"1951-07-01"}]
[]
[null,null,null,null,null,null,null,null,null,null,"整理\n番号",null,null,null,null,null,null,null,null,null,null,null,null,null,null,null,null,null,null,null,null,null,null,null,null,null,null,null,null,null,null,null,null,{"$f":"IF(ISTEXT(区分変更者情報入力!D4),区分変更者情報入力!D4,\"\")","v":"健保　三朗"},null,null,null,null,null,null,null,null,null,null,null,null,null,null,null,null,null,null,null,null,null,null,null,null,null,null,null,null,null,null,null,null,null,null,null,null,null,null,null,null,null,null,null,null,null,null,null,"生年\n月日"]
[]
[]
[]
[]
[null,null,null,null,null,null,null,null,null,"③",null,null,null,null,null,null,null,null,{"$f":"IF(ISTEXT(区分変更者情報入力!D7),区分変更者情報入力!D7,\"\")","v":"1234567890"},null,null,null,null,null,null,null,null,null,null,null,null,null,null,null,null,null,null,null,null,null,null,null,null,null,null,null,null,null,null,null,null,null,null,null,null,null,null,null,null,null,null,null,null,null,null,null,"住　所\n※個人番号を記入した場合は、住所記入は不要です",null,null,null,null,null,null,null,null,"（ﾌﾘｶﾞﾅ）",null,null,null,null,{"$f":"IF(区分変更者情報入力!G7>10,\"\",IF(ISTEXT(区分変更者情報入力!D11),区分変更者情報入力!D11,\"\"))","v":"ｵｵｻｶﾌｵｵｻｶｼﾁｭｳｵｳｸｶﾜﾗﾔﾏﾁ"}]
[]
[null,null,null,null,null,null,null,null,null,"個人番号（または基礎年金番号）\n",null,null,null,null,null,null,null,null,null,null,null,null,null,null,null,null,null,null,null,null,null,null,null,null,null,null,null,null,null,null,null,null,null,null,null,null,null,null,null,null,null,null,null,null,null,null,null,null,null,null,null,null,null,null,null,null,null,null,null,null,null,null,null,null,null,{"$f":"IF(区分変更者情報入力!G7>10,\"\",IF(ISTEXT(区分変更者情報入力!D10),区分変更者情報入力!D10,\"\"))","v":"大阪府大阪市中央区瓦屋町2-3-1"}]
[]
[]
[]
[]
[null,null,null,null,null,null,null,null,null,"※⑤",null,null,null,null,null,null,null,null,{"$f":"IF(ISNUMBER(区分変更者情報入力!D12),VLOOKUP(区分変更者情報入力!D12,区分変更者情報入力!G9:H10,2,0),\"　１． 70歳以上被用者\n　２． 高齢任意加入被保険者\")","v":"　１． 70歳以上被用者\n　２． 高齢任意加入被保険者"},null,null,null,null,null,null,null,null,null,null,null,null,null,null,null,null,null,null,null,"⑥",null,null,null,null,null,null,null,null,{"$f":"IF(ISNUMBER(区分変更者情報入力!D8),VLOOKUP(区分変更者情報入力!D8,区分変更者情報入力!G5:H6,2,0),\"０．一般\n１．短時間労働者(3/4未満)\")","v":"０．一般"},null,null,null,null,null,null,null,null,null,null,null,null,null,null,null,null,null,null,"⑦",null,null,null,null,null,null,null,null,{"$f":"IF(ISNUMBER(区分変更者情報入力!D9),区分変更者情報入力!D9,\"\")","v":"2022-10-01"},null,null,null,null,null,null,null,null,null,null,null,null,null,null,null,null,null,null,null,null,null,null,null,null,null,null,null,null,null,null,null,"備 考"]
[]
[null,null,null,null,null,null,null,null,null,null,"処理\n区分",null,null,null,null,null,null,null,null,null,null,null,null,null,null,null,null,null,null,null,null,null,null,null,null,null,null,null,null,"変更後\n区分",null,null,null,null,null,null,null,null,null,null,null,null,null,null,null,null,null,null,null,null,null,null,null,null,null,null,null,"変更\n年月日"]
[]
[]
[]
[]
[]
[]
[null,null,null,"被保険者（被用者）２",null,null,null,null,null,"②",null,null,null,null,null,null,null,null,{"$f":"IF(ISTEXT(区分変更者情報入力!D26),区分変更者情報入力!D26,\"\")","v":""},null,null,null,null,null,null,null,null,null,null,null,"氏　名",null,null,null,null,null,null,"（ﾌﾘｶﾞﾅ）",null,null,null,null,null,{"$f":"IF(ISTEXT(区分変更者情報入力!D28),区分変更者情報入力!D28,\"\")","v":""},null,null,null,null,null,null,null,null,null,null,null,null,null,null,null,null,null,null,null,null,null,null,null,null,null,null,null,null,null,null,null,null,null,null,null,null,null,null,null,null,null,null,null,null,null,null,"④",null,null,null,null,null,null,{"$f":"IF(ISNUMBER(区分変更者情報入力!D29),区分変更者情報入力!D29,\"\")","v":""}]
[]
[null,null,null,null,null,null,null,null,null,null,"整理\n番号",null,null,null,null,null,null,null,null,null,null,null,null,null,null,null,null,null,null,null,null,null,null,null,null,null,null,null,null,null,null,null,null,{"$f":"IF(ISTEXT(区分変更者情報入力!D27),区分変更者情報入力!D27,\"\")","v":""},null,null,null,null,null,null,null,null,null,null,null,null,null,null,null,null,null,null,null,null,null,null,null,null,null,null,null,null,null,null,null,null,null,null,null,null,null,null,null,null,null,null,null,null,null,null,null,"生年\n月日"]
[]
[]
[]
[]
[null,null,null,null,null,null,null,null,null,"③",null,null,null,null,null,null,null,null,{"$f":"IF(ISTEXT(区分変更者情報入力!D30),区分変更者情報入力!D30,\"\")","v":""},null,null,null,null,null,null,null,null,null,null,null,null,null,null,null,null,null,null,null,null,null,null,null,null,null,null,null,null,null,null,null,null,null,null,null,null,null,null,null,null,null,null,null,null,null,null,null,"住　所\n※個人番号を記入した場合は、住所記入は不要です",null,null,null,null,null,null,null,null,"（ﾌﾘｶﾞﾅ）",null,null,null,null,{"$f":"IF(区分変更者情報入力!G30>10,\"\",IF(ISTEXT(区分変更者情報入力!D34),区分変更者情報入力!D34,\"\"))","v":""}]
[]
[null,null,null,null,null,null,null,null,null,"個人番号（または基礎年金番号）\n",null,null,null,null,null,null,null,null,null,null,null,null,null,null,null,null,null,null,null,null,null,null,null,null,null,null,null,null,null,null,null,null,null,null,null,null,null,null,null,null,null,null,null,null,null,null,null,null,null,null,null,null,null,null,null,null,null,null,null,null,null,null,null,null,null,{"$f":"IF(区分変更者情報入力!G30>10,\"\",IF(ISTEXT(区分変更者情報入力!D33),区分変更者情報入力!D33,\"\"))","v":""}]
[]
[]
[]
[]
[null,null,null,null,null,null,null,null,null,"※⑤",null,null,null,null,null,null,null,null,{"$f":"IF(ISNUMBER(区分変更者情報入力!D35),VLOOKUP(区分変更者情報入力!D35,区分変更者情報入力!G32:H33,2,0),\"　１． 70歳以上被用者\n　２． 高齢任意加入被保険者\")","v":"　１． 70歳以上被用者\n　２． 高齢任意加入被保険者"},null,null,null,null,null,null,null,null,null,null,null,null,null,null,null,null,null,null,null,"⑥",null,null,null,null,null,null,null,null,{"$f":"IF(ISNUMBER(区分変更者情報入力!D31),VLOOKUP(区分変更者情報入力!D31,区分変更者情報入力!G28:H29,2,0),\"０．一般\n１．短時間労働者(3/4未満)\")","v":"０．一般\n１．短時間労働者(3/4未満)"},null,null,null,null,null,null,null,null,null,null,null,null,null,null,null,null,null,null,"⑦",null,null,null,null,null,null,null,null,{"$f":"IF(ISNUMBER(区分変更者情報入力!D32),区分変更者情報入力!D32,\"\")","v":""},null,null,null,null,null,null,null,null,null,null,null,null,null,null,null,null,null,null,null,null,null,null,null,null,null,null,null,null,null,null,null,"備 考"]
[]
[null,null,null,null,null,null,null,null,null,null,"処理\n区分",null,null,null,null,null,null,null,null,null,null,null,null,null,null,null,null,null,null,null,null,null,null,null,null,null,null,null,null,"変更後\n区分",null,null,null,null,null,null,null,null,null,null,null,null,null,null,null,null,null,null,null,null,null,null,null,null,null,null,null,"変更\n年月日"]
[]
[]
[]
[]
[]
[]
[null,null,null,"被保険者（被用者）３",null,null,null,null,null,"②",null,null,null,null,null,null,null,null,{"$f":"IF(ISTEXT(区分変更者情報入力!D49),区分変更者情報入力!D49,\"\")","v":""},null,null,null,null,null,null,null,null,null,null,null,"氏　名",null,null,null,null,null,null,"（ﾌﾘｶﾞﾅ）",null,null,null,null,null,{"$f":"IF(ISTEXT(区分変更者情報入力!D51),区分変更者情報入力!D51,\"\")","v":""},null,null,null,null,null,null,null,null,null,null,null,null,null,null,null,null,null,null,null,null,null,null,null,null,null,null,null,null,null,null,null,null,null,null,null,null,null,null,null,null,null,null,null,null,null,null,"④",null,null,null,null,null,null,{"$f":"IF(ISNUMBER(区分変更者情報入力!D52),区分変更者情報入力!D52,\"\")","v":""}]
[]
[null,null,null,null,null,null,null,null,null,null,"整理\n番号",null,null,null,null,null,null,null,null,null,null,null,null,null,null,null,null,null,null,null,null,null,null,null,null,null,null,null,null,null,null,null,null,{"$f":"IF(ISTEXT(区分変更者情報入力!D50),区分変更者情報入力!D50,\"\")","v":""},null,null,null,null,null,null,null,null,null,null,null,null,null,null,null,null,null,null,null,null,null,null,null,null,null,null,null,null,null,null,null,null,null,null,null,null,null,null,null,null,null,null,null,null,null,null,null,"生年\n月日"]
[]
[]
[]
[]
[null,null,null,null,null,null,null,null,null,"③",null,null,null,null,null,null,null,null,{"$f":"IF(ISTEXT(区分変更者情報入力!D53),区分変更者情報入力!D53,\"\")","v":""},null,null,null,null,null,null,null,null,null,null,null,null,null,null,null,null,null,null,null,null,null,null,null,null,null,null,null,null,null,null,null,null,null,null,null,null,null,null,null,null,null,null,null,null,null,null,null,"住　所\n※個人番号を記入した場合は、住所記入は不要です",null,null,null,null,null,null,null,null,"（ﾌﾘｶﾞﾅ）",null,null,null,null,{"$f":"IF(区分変更者情報入力!G53>10,\"\",IF(ISTEXT(区分変更者情報入力!D57),区分変更者情報入力!D57,\"\"))","v":""}]
[]
[null,null,null,null,null,null,null,null,null,"個人番号（または基礎年金番号）\n",null,null,null,null,null,null,null,null,null,null,null,null,null,null,null,null,null,null,null,null,null,null,null,null,null,null,null,null,null,null,null,null,null,null,null,null,null,null,null,null,null,null,null,null,null,null,null,null,null,null,null,null,null,null,null,null,null,null,null,null,null,null,null,null,null,{"$f":"IF(区分変更者情報入力!G53>10,\"\",IF(ISTEXT(区分変更者情報入力!D56),区分変更者情報入力!D56,\"\"))","v":""}]
[]
[]
[]
[]
[null,null,null,null,null,null,null,null,null,"※⑤",null,null,null,null,null,null,null,null,{"$f":"IF(ISNUMBER(区分変更者情報入力!D58),VLOOKUP(区分変更者情報入力!D58,区分変更者情報入力!G55:H56,2,0),\"　１． 70歳以上被用者\n　２． 高齢任意加入被保険者\")","v":"　１． 70歳以上被用者\n　２． 高齢任意加入被保険者"},null,null,null,null,null,null,null,null,null,null,null,null,null,null,null,null,null,null,null,"⑥",null,null,null,null,null,null,null,null,{"$f":"IF(ISNUMBER(区分変更者情報入力!D54),VLOOKUP(区分変更者情報入力!D54,区分変更者情報入力!G51:H52,2,0),\"０．一般\n１．短時間労働者(3/4未満)\")","v":"０．一般\n１．短時間労働者(3/4未満)"},null,null,null,null,null,null,null,null,null,null,null,null,null,null,null,null,null,null,"⑦",null,null,null,null,null,null,null,null,{"$f":"IF(ISNUMBER(区分変更者情報入力!D55),区分変更者情報入力!D55,\"\")","v":""},null,null,null,null,null,null,null,null,null,null,null,null,null,null,null,null,null,null,null,null,null,null,null,null,null,null,null,null,null,null,null,"備 考"]
[]
[null,null,null,null,null,null,null,null,null,null,"処理\n区分",null,null,null,null,null,null,null,null,null,null,null,null,null,null,null,null,null,null,null,null,null,null,null,null,null,null,null,null,"変更後\n区分",null,null,null,null,null,null,null,null,null,null,null,null,null,null,null,null,null,null,null,null,null,null,null,null,null,null,null,"変更\n年月日"]
[]
[]
[]
[]
[]
[]
[null,null,null,"被保険者（被用者）４",null,null,null,null,null,"②",null,null,null,null,null,null,null,null,{"$f":"IF(ISTEXT(区分変更者情報入力!D72),区分変更者情報入力!D72,\"\")","v":""},null,null,null,null,null,null,null,null,null,null,null,"氏　名",null,null,null,null,null,null,"（ﾌﾘｶﾞﾅ）",null,null,null,null,null,{"$f":"IF(ISTEXT(区分変更者情報入力!D74),区分変更者情報入力!D74,\"\")","v":""},null,null,null,null,null,null,null,null,null,null,null,null,null,null,null,null,null,null,null,null,null,null,null,null,null,null,null,null,null,null,null,null,null,null,null,null,null,null,null,null,null,null,null,null,null,null,"④",null,null,null,null,null,null,{"$f":"IF(ISNUMBER(区分変更者情報入力!D75),区分変更者情報入力!D75,\"\")","v":""}]
[]
[null,null,null,null,null,null,null,null,null,null,"整理\n番号",null,null,null,null,null,null,null,null,null,null,null,null,null,null,null,null,null,null,null,null,null,null,null,null,null,null,null,null,null,null,null,null,{"$f":"IF(ISTEXT(区分変更者情報入力!D73),区分変更者情報入力!D73,\"\")","v":""},null,null,null,null,null,null,null,null,null,null,null,null,null,null,null,null,null,null,null,null,null,null,null,null,null,null,null,null,null,null,null,null,null,null,null,null,null,null,null,null,null,null,null,null,null,null,null,"生年\n月日"]
[]
[]
[]
[]
[null,null,null,null,null,null,null,null,null,"③",null,null,null,null,null,null,null,null,{"$f":"IF(ISTEXT(区分変更者情報入力!D76),区分変更者情報入力!D76,\"\")","v":""},null,null,null,null,null,null,null,null,null,null,null,null,null,null,null,null,null,null,null,null,null,null,null,null,null,null,null,null,null,null,null,null,null,null,null,null,null,null,null,null,null,null,null,null,null,null,null,"住　所\n※個人番号を記入した場合は、住所記入は不要です",null,null,null,null,null,null,null,null,"（ﾌﾘｶﾞﾅ）",null,null,null,null,{"$f":"IF(区分変更者情報入力!G76>10,\"\",IF(ISTEXT(区分変更者情報入力!D80),区分変更者情報入力!D80,\"\"))","v":""}]
[]
[null,null,null,null,null,null,null,null,null,"個人番号（または基礎年金番号）\n",null,null,null,null,null,null,null,null,null,null,null,null,null,null,null,null,null,null,null,null,null,null,null,null,null,null,null,null,null,null,null,null,null,null,null,null,null,null,null,null,null,null,null,null,null,null,null,null,null,null,null,null,null,null,null,null,null,null,null,null,null,null,null,null,null,{"$f":"IF(区分変更者情報入力!G76>10,\"\",IF(ISTEXT(区分変更者情報入力!D79),区分変更者情報入力!D79,\"\"))","v":""}]
[]
[]
[]
[]
[null,null,null,null,null,null,null,null,null,"※⑤",null,null,null,null,null,null,null,null,{"$f":"IF(ISNUMBER(区分変更者情報入力!D81),VLOOKUP(区分変更者情報入力!D81,区分変更者情報入力!G78:H79,2,0),\"　１． 70歳以上被用者\n　２． 高齢任意加入被保険者\")","v":"　１． 70歳以上被用者\n　２． 高齢任意加入被保険者"},null,null,null,null,null,null,null,null,null,null,null,null,null,null,null,null,null,null,null,"⑥",null,null,null,null,null,null,null,null,{"$f":"IF(ISNUMBER(区分変更者情報入力!D77),VLOOKUP(区分変更者情報入力!D77,区分変更者情報入力!G74:H75,2,0),\"０．一般\n１．短時間労働者(3/4未満)\")","v":"０．一般\n１．短時間労働者(3/4未満)"},null,null,null,null,null,null,null,null,null,null,null,null,null,null,null,null,null,null,"⑦",null,null,null,null,null,null,null,null,{"$f":"IF(ISNUMBER(区分変更者情報入力!D78),区分変更者情報入力!D78,\"\")","v":""},null,null,null,null,null,null,null,null,null,null,null,null,null,null,null,null,null,null,null,null,null,null,null,null,null,null,null,null,null,null,null,"備 考"]
[]
[null,null,null,null,null,null,null,null,null,null,"処理\n区分",null,null,null,null,null,null,null,null,null,null,null,null,null,null,null,null,null,null,null,null,null,null,null,null,null,null,null,null,"変更後\n区分",null,null,null,null,null,null,null,null,null,null,null,null,null,null,null,null,null,null,null,null,null,null,null,null,null,null,null,"変更\n年月日"]
[]
[]
[]
[]
[]
[]
[null,null,null,"被保険者（被用者）５",null,null,null,null,null,"②",null,null,null,null,null,null,null,null,{"$f":"IF(ISTEXT(区分変更者情報入力!D95),区分変更者情報入力!D95,\"\")","v":""},null,null,null,null,null,null,null,null,null,null,null,"氏　名",null,null,null,null,null,null,"（ﾌﾘｶﾞﾅ）",null,null,null,null,null,{"$f":"IF(ISTEXT(区分変更者情報入力!D97),区分変更者情報入力!D97,\"\")","v":""},null,null,null,null,null,null,null,null,null,null,null,null,null,null,null,null,null,null,null,null,null,null,null,null,null,null,null,null,null,null,null,null,null,null,null,null,null,null,null,null,null,null,null,null,null,null,"④",null,null,null,null,null,null,{"$f":"IF(ISNUMBER(区分変更者情報入力!D98),区分変更者情報入力!D98,\"\")","v":""}]
[]
[null,null,null,null,null,null,null,null,null,null,"整理\n番号",null,null,null,null,null,null,null,null,null,null,null,null,null,null,null,null,null,null,null,null,null,null,null,null,null,null,null,null,null,null,null,null,{"$f":"IF(ISTEXT(区分変更者情報入力!D96),区分変更者情報入力!D96,\"\")","v":""},null,null,null,null,null,null,null,null,null,null,null,null,null,null,null,null,null,null,null,null,null,null,null,null,null,null,null,null,null,null,null,null,null,null,null,null,null,null,null,null,null,null,null,null,null,null,null,"生年\n月日"]
[]
[]
[]
[]
[null,null,null,null,null,null,null,null,null,"③",null,null,null,null,null,null,null,null,{"$f":"IF(ISTEXT(区分変更者情報入力!D99),区分変更者情報入力!D99,\"\")","v":""},null,null,null,null,null,null,null,null,null,null,null,null,null,null,null,null,null,null,null,null,null,null,null,null,null,null,null,null,null,null,null,null,null,null,null,null,null,null,null,null,null,null,null,null,null,null,null,"住　所\n※個人番号を記入した場合は、住所記入は不要です",null,null,null,null,null,null,null,null,"（ﾌﾘｶﾞﾅ）",null,null,null,null,{"$f":"IF(区分変更者情報入力!G99>10,\"\",IF(ISTEXT(区分変更者情報入力!D103),区分変更者情報入力!D103,\"\"))","v":""}]
[]
[null,null,null,null,null,null,null,null,null,"個人番号（または基礎年金番号）\n",null,null,null,null,null,null,null,null,null,null,null,null,null,null,null,null,null,null,null,null,null,null,null,null,null,null,null,null,null,null,null,null,null,null,null,null,null,null,null,null,null,null,null,null,null,null,null,null,null,null,null,null,null,null,null,null,null,null,null,null,null,null,null,null,null,{"$f":"IF(区分変更者情報入力!G99>10,\"\",IF(ISTEXT(区分変更者情報入力!D102),区分変更者情報入力!D102,\"\"))","v":""}]
[]
[]
[]
[]
[null,null,null,null,null,null,null,null,null,"※⑤",null,null,null,null,null,null,null,null,{"$f":"IF(ISNUMBER(区分変更者情報入力!D104),VLOOKUP(区分変更者情報入力!D104,区分変更者情報入力!G101:H102,2,0),\"　１． 70歳以上被用者\n　２． 高齢任意加入被保険者\")","v":"　１． 70歳以上被用者\n　２． 高齢任意加入被保険者"},null,null,null,null,null,null,null,null,null,null,null,null,null,null,null,null,null,null,null,"⑥",null,null,null,null,null,null,null,null,{"$f":"IF(ISNUMBER(区分変更者情報入力!D100),VLOOKUP(区分変更者情報入力!D100,区分変更者情報入力!G97:H98,2,0),\"０．一般\n１．短時間労働者(3/4未満)\")","v":"０．一般\n１．短時間労働者(3/4未満)"},null,null,null,null,null,null,null,null,null,null,null,null,null,null,null,null,null,null,"⑦",null,null,null,null,null,null,null,null,{"$f":"IF(ISNUMBER(区分変更者情報入力!D101),区分変更者情報入力!D101,\"\")","v":""},null,null,null,null,null,null,null,null,null,null,null,null,null,null,null,null,null,null,null,null,null,null,null,null,null,null,null,null,null,null,null,"備 考"]
[]
[null,null,null,null,null,null,null,null,null,null,"処理\n区分",null,null,null,null,null,null,null,null,null,null,null,null,null,null,null,null,null,null,null,null,null,null,null,null,null,null,null,null,"変更後\n区分",null,null,null,null,null,null,null,null,null,null,null,null,null,null,null,null,null,null,null,null,null,null,null,null,null,null,null,"変更\n年月日"]
[]
[]
[]
[]
[]
[null,null,null,"　※「⑤」は該当しない場合記入不要です。"]

{"sheet":"裏面","index":6,"n_rows":138,"n_cols":78,"rows_kept":138,"cut":false,"hidden":false,"merged":[[39,1,41,127],[1,1,4,129],[5,1,8,129],[12,1,14,127],[15,1,17,127],[18,1,20,127],[21,1,23,127],[24,1,26,127],[27,1,29,127],[30,1,32,127],[33,1,35,127],[36,1,38,127],[42,1,44,127],[45,1,47,127],[53,1,56,11],[58,1,60,13],[58,17,60,18],[58,21,60,128],[61,21,62,128],[65,21,68,31],[65,32,68,34],[65,35,68,37],[65,38,68,40],[65,41,68,43],[65,44,68,46],[65,47,68,49],[65,50,68,52],[65,53,68,64],[65,65,68,67],[65,68,68,70],[65,71,68,73],[65,74,68,76],[65,77,68,79],[83,1,85,13],[83,17,85,18],[83,21,85,128],[72,1,77,16],[72,17,74,18],[72,21,77,128],[88,21,94,28],[88,35,89,36],[88,43,89,44],[88,51,89,52],[90,29,94,32],[90,33,94,36],[90,37,94,40],[90,41,94,44],[90,45,94,48],[90,49,94,52],[101,1,103,14],[101,17,103,18],[101,21,103,128],[112,1,114,13],[112,17,114,18],[112,21,114,128],[129,21,131,128],[137,1,139,13],[137,17,139,18],[137,21,139,128],[115,21,117,128],[123,1,125,13],[123,17,125,18],[123,21,125,128],[126,21,128,128]]}
[]
[null,"　この届書は、「国・地方公共団体に属する事業所」「特定適用事業所」及び「任意特定適用事業所」における被保険者または70歳以上の被用者の雇用形態が"]
[]
[]
[]
[null,"「通常の労働者」から「短時間労働者」に変更した場合、または「短時間労働者」から「通常の労働者」に変更した場合に提出いただくものです。"]
[]
[]
[]
[]
[]
[]
[null,"・　「短時間労働者」とは、厚生年金保険法第12条第5号及び健康保険法第3条第1項第9号に規定され、「短時間労働者の雇用管理の改善等に関する法律」"]
[]
[]
[null,"第2条に規定する「通常の労働者」の1週間の所定労働時間の4分の3未満である同条に規定する短時間労働者又はその1月間の所定労働日数が同一の事業"]
[]
[]
[null,"所に使用される通常の労働者の1月間の所定労働日数の4分の3未満に該当する短時間労働者のうち、以下の全ての要件を満たす者をいいます。"]
[]
[]
[null,"1　　週の所定労働時間が20時間以上であること。"]
[]
[]
[null,"2　　雇用期間が1年以上見込まれること（雇用期間が1年未満であるが、雇用契約書等でその契約が更新される旨又は更新される場合がある旨明示されてい"]
[]
[]
[null,"　　　る場合を含む）。"]
[]
[]
[null,"3　　賃金の月額が88,000円以上であること、但し、以下の①から④については除く。"]
[]
[]
[null,"　　　①臨時に支払われる賃金（結婚手当等）"]
[]
[]
[null,"　　　②1月を超える期間ごとに支払われる賃金（賞与等）"]
[]
[]
[null,"　　　③所定時間外労働、休日労働及び深夜労働に対して支払われる賃金（割増賃金等）"]
[]
[]
[null,"　　　④最低賃金法において算入しないことを定める賃金（精皆勤手当、通勤手当及び家族手当）"]
[]
[]
[null,"4　　学生でないこと。"]
[]
[]
[]
[]
[]
[]
[]
[null,"記入方法"]
[]
[]
[]
[]
[null,"提出者記入欄",null,null,null,null,null,null,null,null,null,null,null,null,null,null,null,"：",null,null,null,"事業所整理記号・事業所番号は下図を参照し、新規適用時または名称・所在地変更時に付された番号を記入してください。"]
[]
[]
[]
[]
[]
[]
[null,null,null,null,null,null,null,null,null,null,null,null,null,null,null,null,null,null,null,null,null,"① 事 業 所\n　整 理 記 号",null,null,null,null,null,null,null,null,null,null,0,null,null,1,null,null,"－",null,null,null,null,null,"イ",null,null,"ロ",null,null,"ハ",null,null,"事 業 所 番 号",null,null,null,null,null,null,null,null,null,null,null,1,null,null,2,null,null,3,null,null,4,null,null,5]
[]
[]
[]
[]
[]
[]
[null,"③個人番号（または\n　 基礎年金番号）",null,null,null,null,null,null,null,null,null,null,null,null,null,null,null,"：",null,null,null,"③は、本人確認を行ったうえで、個人番号を記入してください。基礎年金番号を記入する場合は、基礎年金番号通知書等に記載されている10桁の番号を左詰めで記入してください。"]
[]
[]
[]
[]
[]
[]
[]
[]
[]
[]
[null,"④生年月日",null,null,null,null,null,null,null,null,null,null,null,null,null,null,null,"：",null,null,null,"年号は該当する番号を◯で囲んでください。生年月日は下図を参照し記入してください。"]
[]
[]
[]
[]
[null,null,null,null,null,null,null,null,null,null,null,null,null,null,null,null,null,null,null,null,null,"\n5.昭和\n7.平成\n9.令和",null,null,null,null,null,null,null,null,null,null,null,null,null,"年",null,null,null,null,null,null,null,"月",null,null,null,null,null,null,null,"日"]
[]
[null,null,null,null,null,null,null,null,null,null,null,null,null,null,null,null,null,null,null,null,null,null,null,null,null,null,null,null,null,6,null,null,null,3,null,null,null,0,null,null,null,5,null,null,null,0,null,null,null,3]
[]
[]
[]
[]
[]
[]
[]
[]
[]
[]
[null,"住所",null,null,null,null,null,null,null,null,null,null,null,null,null,null,null,"：",null,null,null,"日本年金機構に提出する際、③に個人番号を記入した場合は住所記入は不要です。"]
[]
[]
[]
[]
[]
[]
[]
[]
[]
[]
[null,"⑤処理区分",null,null,null,null,null,null,null,null,null,null,null,null,null,null,null,"：",null,null,null,"厚生年金保険の70歳以上被用者または高齢任意加入被保険者については、該当する番号を◯で囲んでください。"]
[]
[]
[null,null,null,null,null,null,null,null,null,null,null,null,null,null,null,null,null,null,null,null,null,"該当しない場合は記入不要です。"]
[]
[]
[]
[]
[]
[]
[]
[null,"⑥変更後区分",null,null,null,null,null,null,null,null,null,null,null,null,null,null,null,"：",null,null,null,"該当する番号を◯で囲んでください。"]
[]
[]
[null,null,null,null,null,null,null,null,null,null,null,null,null,null,null,null,null,null,null,null,null,"短時間労働者が正社員等になった場合は、「0.一般」を◯で囲んでください。"]
[]
[]
[null,null,null,null,null,null,null,null,null,null,null,null,null,null,null,null,null,null,null,null,null,"正社員等が短時間労働者になった場合は、「1.短時間労働者（3/4未満）」を◯で囲んでください。"]
[]
[]
[]
[]
[]
[]
[]
[null,"⑦変更年月日",null,null,null,null,null,null,null,null,null,null,null,null,null,null,null,"：",null,null,null,"雇用形態等の変更年月日を記入してください。"]